Workbook

Sheet Aula1
B2: Exercícios no Excel | U2: Gráfico: distribuição de frequências: polígono frequencia
B5: 2.2.1 | C5: Ativo Total (AT) , planilha Empresas.
E6: n = | G6: Mínimo = | I6: Média = | K6: mv Log10
C7: Regra de Sturges: | E7: nc = | F7: 10 | G7: Máximo = | I7: Mediana = | K7: Mv Log10 | M7: Amplit Classe | N7: =ROUNDUP((L7-L6)/F7,2) -> 0
D8: Intervalos Lineares (iguais) | G8: Ac = | K8: Intervalos não-lineares (logarítmicos) | M8: Ativos em $ | P8: Pto Médio
C9: Classe | D9: Lim. Inf. | E9: Lim. Sup. | F9: Freq | G9: Freq Rel | H9: Freq. Ac | J9: Classe | K9: Lim. Inf. | L9: Lim. Sup. | M9: Lim inf | N9: Lim sup | O9: Amplit | Q9: Freq | R9: Freq Rel | S9: Freq. Ac
C10: 1 | J10: 1
C11: 2 | J11: 2
C12: 3 | J12: 3
C13: 4 | J13: 4
C14: 5 | J14: 5
C15: 6 | J15: 6
C16: 7 | J16: 7
C17: 8 | J17: 8
C18: 9 | J18: 9 | U18: Gráfico: Frequências acumuladas (ogiva)
C19: 10 | J19: 10
N20: x (ogiva) | P20: x (polig freq) | R20: y (pol. Freq.) | S20: y (ogiva)
B22: 2.2.2 | C22: Histograma e Gráfico de Pareto. A planilha Frequencia, apresenta dados de clientes (célula B4)
C23: ND = Número de dependentes | J23: Histograma
C25: ND | D25: Freq | E25: Dep | H25: Ordem | I25: Freq Ord | J25: Dep
C26: 0 | E26: =CONCATENATE(C26," Dep") -> 0 Dep | H26: 1
C27: 1 | E27: =CONCATENATE(C27," Dep") -> 1 Dep | H27: 2
C28: 2 | E28: 2 Dep | H28: 3
C29: 3 | E29: 3 Dep | H29: 4
C30: 4 | E30: 4 Dep | H30: 5
C31: 5 | E31: 5 Dep | H31: 6
J32: Pareto
B33: 2.3.1 | C33: Medidas de centro | F33: Ativos
D34: Média | F34: =J6 -> 0
D35: Mediana
D36: Moda
B37: 2.3.2 | C37: Medidas de variação
D38: Amplitude
D39: Desvio-padrão | H39: Variância
D40: Coeficiente de variação
B41: 2.3.3 | C41: Medidas dedispersão | H41: Quartis | J41: Percentis
D42: Renda | H42: 0 | J42: 18
D43: Escore-z | H43: 1 | J43: 50
H44: 2 | J44: 85
B45: 2.4.1 | C45: Boxplot | E45: ST | H45: 3
E46: ST=0 | F46: ST=1 | H46: 4
C47: 4 | D47: Max | L47: BoxPlot
C48: 3 | D48: Q3
C49: 2 | D49: Mediana
C50: 1 | D50: Q1
C51: 0 | D51: Min
D52: Erro(+): Max - Q3
D53: Q3 - Mediana
D54: Mediana - Q1
D55: Q1
D56: Erro(-): Q1 - Min
B59: 2.4.2 | C59: 4 | D59: Máximo
C60: 3 | D60: Quartil 3
C61: 2 | D61: Madiana
C62: 1 | D62: Quartil 1
C63: 0 | D63: Mínimo
B65: 3.1.1 | C65: Tabela 3.1
C66: Produto | D66: C/ Defeito | E66: S/ defeito
C67: Tijolo | D67: 6000 | E67: 84000
C68: Telha | D68: 3000 | E68: 27000
C71: a
C72: b
C73: c
C74: d | H74: Número de | I74: Exatamente | J74: x ou menos | K74: Mais do que | M74: Distribuição Binomial: Probabilidade de mais de x falhas em 40 observações.
B75: 3.2.1 | C75: Binomial: | H75: Faltas (x) | I75: x | J75: faltas | K75: x faltas
H76: x | I76: Probab | J76: Probab | K76: Probab
D77: Faltas: | E77: p = | F77: 0.2
E79: n =
E80: x =
E81: P(x) =
E82: P(<=x) =
E83: P(>x) =
E85: média =
M93: Distribuição Binomial: Probabilidade de exatamente x falhas em 40 observações.
B119: 3.2.2 | C119: Poisson
C120: 6 | D120: L = Média
D122: Nro gotas choc | E122: P(x)
D123: 0 | E123: =POISSON(D123,$C$120,FALSE) -> 0.002478752177
D124: 1 | E124: =POISSON(D124,$C$120,FALSE) -> 0.01487251306 | G124: a | H124: =E128+E129 -> 0.3212462821
D125: 2 | E125: 0.04461753918
D126: 3 | E126: 0.08923507836 | G126: b | H126: =SUM(E123:E127) -> 0.2850565003
D127: 4 | E127: 0.1338526175
D128: 5 | E128: 0.160623141 | G128: c | H128: =1-SUM(E123:E131) -> 0.152762506
D129: 6 | E129: 0.160623141
D130: 7 | E130: 0.137676978
D131: 8 | E131: 0.1032577335
D132: 9 | E132: 0.06883848902
D133: 10 | E133: 0.04130309341
D134: 11 | E134: 0.02252896004
D135: 12 | E135: 0.01126448002
D136: 13 | E136: 0.005198990779
D137: 14 | E137: 0.002228138905
D138: 15 | E138: 0.0008912555621
D139: 16 | E139: 0.0003342208358
D140: 17 | E140: 0.000117960295
D141: 18 | E141: 3.932009833e-05
D142: 19 | E142: 1.241687316e-05
D143: 20 | E143: =POISSON(D143,$C$120,FALSE) -> 3.725061947e-06
B146: 3.3.1 | D146: Média | E146: =80500 -> 80500 | G146: =E146-2*E147 -> 42500
D147: Desvio-padrão | E147: 19000
G148: Área | I148: Probabilidades
E149: Até | F149: 55000 | G149: =NORMDIST(F149,$E$146,$E$147,TRUE) -> 0.08978093381
E150: Até | F150: 80500 | G150: =NORMDIST(F150,$E$146,$E$147,TRUE) -> 0.5
E152: entre | F152: =F149 -> 55000 | G152: e | H152: =F150 -> 80500 | I152: =G150-G149 -> 0.4102190662
E154: Até | F154: 48000 | G154: =NORMDIST(F154,$E$146,$E$147,TRUE) -> 0.04358429572
E155: Acima de | F155: 96500 | G155: =1-NORMDIST(F155,$E$146,$E$147,TRUE) -> 0.1998645178 | I155: =G154+G155 -> 0.2434488135

Sheet Aula2
B2: Amostragem | K2: Intervalo de confiança | L2: μ =
O3: 1
A4: 4.1.1 | B4: Realize uma amostra aleatória com reposição, de tamanho n = 40 | J4: 4.2.1 | K4: IC p/ médias com σ conhecido. | O4: 2
B5: Considere a grade com números de 1 a 3000. | K5: x = | M5: NC = | O5: 3
K6: alfa = | M6: E = | O6: 4
B7: Amostra | K7: Z_alfa/2 = | O7: 5 | Q7: E =
A8: 1 | K8: IC = | M8: < μ < | O8: 6 | Q8: Z_a/2
A9: 2 | O9: 7 | Q9: N =
A10: 3 | J10: 4.2.2 | K10: IC p/ médias com σ desconhecido. | O10: 8
A11: 4 | K11: s = | O11: 9 | Q11: n =
A12: 5 | K12: alfa = | M12: NC = | O12: 10
A13: 6 | K13: t_alfa/2 = | M13: E =
A14: 7 | K14: IC = | M14: < μ <
A15: 8
A16: 9 | J16: 4.2.3 | K16: População: | L16: N = | O16: Violações
A17: 10 | K17: Amostra | L17: n =
K18: Taxa de exceção tolerável =
A19: 4.1.2 | B19: Realize uma amostra aleatória sem reposição, de tamanho n = 40
B20: Considere a grade com números de 1 a 3000. | K20: alfa = | M20: NC =
K21: Z_alfa/2 =
B22: Amostra
A23: 1 | G23: Média | K23: p=
A24: 2 | G24: Média Pop | K24: Erro =
A25: 3 | G25: Desv pad | K25: Limite superior =
A26: 4 | G26: n =
A27: 5
A28: 6 | G28: z =
A29: 7
A30: 8
A31: 9
A32: 10
B36: Teste de Hipóteses
A38: 4.3.1 | B38: = | E38: n =
B39: σ =
B41: Afirmativa Original: A média é 368 g.
B43: Procedimento para teste de hipóteses:
B45: 1 | C45: μ =
B46: 2 | C46: μ ≠
B47: 3 | C47: H0 : | D47: μ =
B48: 4 | C48: H1 : | D48: μ ≠
B49: 5 | C49: Z_teste =
C50: valor p =
B51: 6 | F51: =IF(D50>D55,"Não rejeita H0","Rejeita H0") -> Rejeita H0
B52: 7
C55: alfa = | D55: 0.05
A66: 4.3.2 | B66: Caso BKL | J66: gl =
B68: Local Exposição | D68: Vendas | E68: Normal | F68: Ponta corredor | J68: Teste-t: duas amostras presumindo variâncias equivalentes
B69: Normal | D69: 22 | E69: 22 | F69: 52
B70: Normal | D70: 34 | E70: 34 | F70: 71
B71: Normal | D71: 52 | E71: 52 | F71: 76
B72: Normal | D72: 62 | E72: 62 | F72: 54
B73: Normal | D73: 30 | E73: 30 | F73: 67
B74: Normal | D74: 40 | E74: 40 | F74: 83
B75: Normal | D75: 64 | E75: 64 | F75: 66
B76: Normal | D76: 84 | E76: 84 | F76: 90
B77: Normal | D77: 56 | E77: 56 | F77: 77
B78: Normal | D78: 59 | E78: 59 | F78: 84
B79: Ponta de Corredor | D79: 52
B80: Ponta de Corredor | D80: 71 | E80: X1
B81: Ponta de Corredor | D81: 76 | E81: X2
B82: Ponta de Corredor | D82: 54 | E82: s1 =
B83: Ponta de Corredor | D83: 67 | E83: s2 =
B84: Ponta de Corredor | D84: 83 | E84: S^2 p =
B85: Ponta de Corredor | D85: 66
B86: Ponta de Corredor | D86: 90
B87: Ponta de Corredor | D87: 77 | E87: t_teste
B88: Ponta de Corredor | D88: 84 | E88: valor-p =
A90: 4.3.3 | E90: Milhas por galão
B91: Modelo | E91: Proprietário | F91: padrão USA
B92: Ford F-150 2005 | E92: 14.3 | F92: 16.8
B93: Chevrolet Silverado 2005 | E93: 15 | F93: 17.8
B94: Honda Accord LX 2002 | E94: 27.8 | F94: 26.2
B95: Honda Civic 2002 | E95: 27.9 | F95: 34.2
B96: Honda Civic Hybrid 2004 | E96: 48.8 | F96: 47.6
B97: Ford Explorer 2002 | E97: 16.8 | F97: 18.3
B98: Toyota Camry 2005 | E98: 23.7 | F98: 28.5
B99: Toyota Corolla 2003 | E99: 32.8 | F99: 33.1
B100: Toyota Prius 2005 | E100: 37.3 | F100: 56
E102: 1 milha: | F102: 1.609344 | G102: Km
E103: 1 galão: | F103: 3.785411784 | G103: litros
E105: Km por litro
B106: Modelo | E106: Proprietário | F106: padrão USA | G106: D
B107: Ford F-150 2005 | E107: =E92*$F$102/$F$103 -> 6.079555016 | F107: =F92*$F$102/$F$103 -> 7.142414285
B108: Chevrolet Silverado 2005 | E108: =E93*$F$102/$F$103 -> 6.377155611 | F108: 7.567557992
B109: Honda Accord LX 2002 | E109: 11.81899507 | F109: 11.13876513
B110: Honda Civic 2002 | E110: 11.86150944 | F110: 14.53991479
B111: Honda Civic Hybrid 2004 | E111: =E96*$F$102/$F$103 -> 20.74701292 | F111: =F96*$F$102/$F$103 -> 20.23684047
B112: Ford Explorer 2002 | E112: 7.142414285 | F112: =F97*$F$102/$F$103 -> 7.780129846
B113: Toyota Camry 2005 | E113: 10.07590587 | F113: =F98*$F$102/$F$103 -> 12.11659566
B114: Toyota Corolla 2003 | E114: 13.9447136 | F114: =F99*$F$102/$F$103 -> 14.07225672
B115: Toyota Prius 2005 | E115: 15.85786029 | F115: =F100*$F$102/$F$103 -> 23.80804762
E116: =AVERAGE(E107:E115) -> 11.54501357 | F116: =AVERAGE(F107:F115) -> 13.15583584 | H116: Média
H117: desv. Padrão
F119: t_teste =
F120: valor-p =
F121: t_crítico =
A123: Exercícios Adicionais
A125: Teste de Hipóteses
A127: 4.2.4 LEVINE 8.78.
C128: n = | D128: 50
C129: N = | D129: 1000
B133: IC: | D133: < π <
B135: Taxa tolerável: | C135: 0.15
A137: 4.2.5 LEVINE 8.80.
C138: NC =
C139: Erro máximo =
C140: σ =
B141: a.
B144: b.
A148: 4.2.6 LEVINE 8.81.
A150: 5.65 | B150: 5.44 | C150: 5.42 | D150: 5.4 | E150: 5.53 | F150: 5.34 | G150: 5.54
A151: 5.45 | B151: 5.52 | C151: 5.41 | D151: 5.57 | E151: 5.4 | F151: 5.53 | G151: 5.54
A152: 5.55 | B152: 5.62 | C152: 5.56 | D152: 5.46 | E152: 5.44 | F152: 5.51 | G152: 5.47
A153: 5.4 | B153: 5.47 | C153: 5.61 | D153: 5.53 | E153: 5.32 | F153: 5.67 | G153: 5.29
A154: 5.49 | B154: 5.55 | C154: 5.77 | D154: 5.57 | E154: 5.42 | F154: 5.58 | G154: 5.58
A155: 5.5 | B155: 5.32 | C155: 5.5 | D155: 5.53 | E155: 5.58 | F155: 5.61 | G155: 5.45
A156: 5.44 | B156: 5.25 | C156: 5.56 | D156: 5.63 | E156: 5.5 | F156: 5.57 | G156: 5.67
A157: 5.36
A159: a.
A165: b.
A170: Teste de Hipóteses
A172: 4.3.4 LEVINE 9.55.
B174: n = | C174: 50
B175: média = | C175: 25.36 | D175: minutos
B176: s = | C176: 7.24 | D176: minutos
B177: α = | C177: 0.1
A182: 4.3.5 LEVINE 9.57.
B184: n = | C184: 50
B185: média = | C185: 231.3 | D185: gramas
B186: s = | C186: 1.45 | D186: gramas
B187: α = | C187: 0.05
C189: a.
C196: b.
A200: 4.3.6 LEVINE 9.58.
B202: 36.15 | C202: 31 | D202: 35.05 | E202: 40.25 | F202: 33.75 | G202: 43
A204: a. | B204: α = | C204: 0.05
B206: H0: μ = | C206: 35
A209: b. | B209: valor-P:
A211: c.
A213: d.
A215: 4.3.7 LEVINE 9.60.
A217: 2.109 | B217: 2.086 | C217: 2.066 | D217: 2.075 | E217: 2.065 | F217: 2.057 | G217: 2.052
A218: 2.044 | B218: 2.036 | C218: 2.038 | D218: 2.031 | E218: 2.029 | F218: 2.025 | G218: 2.029
A219: 2.023 | B219: 2.02 | C219: 2.015 | D219: 2.014 | E219: 2.013 | F219: 2.014 | G219: 2.012
A220: 2.012 | B220: 2.012 | C220: 2.012 | D220: 2.005 | E220: 2.003 | F220: 1.999 | G220: 1.996
A221: 1.997 | B221: 1.992 | C221: 1.994 | D221: 1.986 | E221: 1.984 | F221: 1.984 | G221: 1.973
A222: 1.975 | B222: 1.971 | C222: 1.969 | D222: 1.966 | E222: 1.967 | F222: 1.963 | G222: 1.957
A223: 1.951 | B223: 1.951 | C223: 1.947 | D223: 1.941 | E223: 1.941 | F223: 1.938 | G223: 1.908
A224: 1.894
A226: a. | B226: α = | C226: 0.05
B228: H0: μ = | C228: 2
A231: b. | B231: valor-P:

Sheet A3Series
B3: Coca-Cola Company | E3: 6.1.1 ajuste | G3: 6.1.3 Modelos | J3: Ajuste W =
B4: Ano | C4: t | D4: Receitas $bi | E4: MM(5) | F4: MM(9) | G4: Linear | H4: Quadr. | I4: Exponenc.
B5: 1975 | C5: 0 | D5: 2.9 | G5: R2 | H5: R2 | I5: R2
B6: 1976 | C6: 1 | D6: 3.1
B7: 1977 | C7: 2 | D7: 3.6
B8: 1978 | C8: 3 | D8: 4.3
B9: 1979 | C9: 4 | D9: 4.5
B10: 1980 | C10: 5 | D10: 5.3
B11: 1981 | C11: 6 | D11: 5.5
B12: 1982 | C12: 7 | D12: 5.9
B13: 1983 | C13: 8 | D13: 6.6
B14: 1984 | C14: 9 | D14: 7.2
B15: 1985 | C15: 10 | D15: 7.9
B16: 1986 | C16: 11 | D16: 7
B17: 1987 | C17: 12 | D17: 7.7
B18: 1988 | C18: 13 | D18: 8.3
B19: 1989 | C19: 14 | D19: 9
B20: 1990 | C20: 15 | D20: 10.2
B21: 1991 | C21: 16 | D21: 11.6
B22: 1992 | C22: 17 | D22: 13
B23: 1993 | C23: 18 | D23: 14
B24: 1994 | C24: 19 | D24: 16.2
B25: 1995 | C25: 20 | D25: 18
B26: 1996 | C26: 21 | D26: 18.5
B27: 1997 | C27: 22 | D27: 18.9
B28: 1998 | C28: 23 | D28: 18.8
B29: 1999 | C29: 24 | D29: 19.8
B30: 2000 | C30: 25 | D30: 20.5
B31: 2001 | C31: 26 | D31: 20.1
B32: 2002 | C32: 27 | D32: 19.6
B33: 2003 | C33: 28 | D33: 21
B34: 2004 | C34: 29 | D34: 21.9
B35: 2005 | C35: 30 | D35: 23.1
J37: W = | K37: 0
B38: Cabot Corporation | E38: 6.1.2 | F38: W
B39: Ano | C39: t | D39: Receita $bi | E39: Aj. Expon.
B40: 1982 | C40: 0 | D40: 1.588
B41: 1983 | C41: 1 | D41: 1.558
B42: 1984 | C42: 2 | D42: 1.753
B43: 1985 | C43: 3 | D43: 1.408
B44: 1986 | C44: 4 | D44: 1.31
B45: 1987 | C45: 5 | D45: 1.424
B46: 1988 | C46: 6 | D46: 1.677
B47: 1989 | C47: 7 | D47: 1.937
B48: 1990 | C48: 8 | D48: 1.685
B49: 1991 | C49: 9 | D49: 1.488
B50: 1992 | C50: 10 | D50: 1.562
B51: 1993 | C51: 11 | D51: 1.619
B52: 1994 | C52: 12 | D52: 1.687
B53: 1995 | C53: 13 | D53: 1.841
B54: 1996 | C54: 14 | D54: 1.865
B55: 1997 | C55: 15 | D55: 1.637
B56: 1998 | C56: 16 | D56: 1.653
B57: 1999 | C57: 17 | D57: 1.699
B58: 2000 | C58: 18 | D58: 1.698
B59: 2001 | C59: 19 | D59: 1.523
B60: 2002 | C60: 20 | D60: 1.557
B61: 2003 | C61: 21 | D61: 1.795
B62: 2004 | C62: 22 | D62: 1.934
B63: 2005 | C63: 23 | D63: 2.125
B64: 2006 | C64: 24
B66: Componentes de séries
C67: t | D67: Y | E67: Tendência | F67: 0
C68: 1 | D68: =$F$67*C68+$F$69*SIN(2*PI()*C68/$F$70)+$F$72*COS(2*PI()*C68/$F$73)+$F$75*RAND() -> 0
C69: 2 | D69: =$F$67*C69+$F$69*SIN(2*PI()*C69/$F$70)+$F$72*COS(2*PI()*C69/$F$73)+$F$75*RAND() -> 0 | E69: Cíclica | F69: 0
C70: 3 | D70: 0 | E70: Período | F70: 40
C71: 4 | D71: =$F$67*C71+$F$69*SIN(2*PI()*C71/$F$70)+$F$72*COS(2*PI()*C71/$F$73)+$F$75*RAND() -> 0
C72: 5 | D72: 0 | E72: Sazonal | F72: 0
C73: 6 | D73: 0 | E73: Período | F73: 4
C74: 7 | D74: 0
C75: 8 | D75: 0 | E75: Aleatória | F75: 0
C76: 9 | D76: 0
C77: 10 | D77: 0
C78: 11 | D78: 0
C79: 12 | D79: 0
C80: 13 | D80: 0
C81: 14 | D81: 0
C82: 15 | D82: 0
C83: 16 | D83: 0
C84: 17 | D84: 0
C85: 18 | D85: 0
C86: 19 | D86: 0
C87: 20 | D87: 0
C88: 21 | D88: 0
C89: 22 | D89: 0
C90: 23 | D90: 0
C91: 24 | D91: 0
C92: 25 | D92: 0
C93: 26 | D93: 0
C94: 27 | D94: 0
C95: 28 | D95: 0
C96: 29 | D96: 0
C97: 30 | D97: 0
C98: 31 | D98: 0
C99: 32 | D99: 0
C100: 33 | D100: 0
C101: 34 | D101: 0
C102: 35 | D102: 0
C103: 36 | D103: 0 | I103: Intercept | K103: b0 | L103: β0 = | N103: Estim. 1
C104: 37 | D104: 0 | I104: t (X) | K104: b1 | L104: β1 = | N104: Taxa:
C105: 38 | D105: 0 | I105: T1 | K105: b2 | L105: β2 =
C106: 39 | D106: 0 | I106: T2 | K106: b3 | L106: β3 =
C107: 40 | D107: 0 | I107: T3 | K107: b4 | L107: β4 =
A110: 6.2.1
B111: Trimestre | C111: Receitas | D111: t (X) | E111: T1 | F111: T2 | G111: T3 | H111: Log(R) | I111: y^ | J111: 10^Y
B112: 2000-1 | C112: 34.7 | S112: SUMMARY OUTPUT
B113: 2000-2 | C113: 38.2
B114: 2000-3 | C114: 40.4
B115: 2000-4 | C115: 51.4
B116: 2001-1 | C116: 43
B117: 2001-2 | C117: 46.1
B118: 2001-3 | C118: 45.7
B119: 2001-4 | C119: 56.6
B120: 2002-1 | C120: 48.6
B121: 2002-2 | C121: 53.3
B122: 2002-3 | C122: 51.8
B123: 2002-4 | C123: 64.2
B124: 2003-1 | C124: 55
B125: 2003-2 | C125: 59.7
B126: 2003-3 | C126: 58.8
B127: 2003-4 | C127: 71.1
B128: 2004-1 | C128: 56.7
B129: 2004-2 | C129: 62.6
B130: 2004-3 | C130: 62.4
B131: 2004-4 | C131: 74.5
B132: 2005-1 | C132: 64.8
B133: 2005-2 | C133: 69.7
B134: 2005-3 | C134: 68.5
B135: 2005-4 | C135: 82.2
B136: 2006-1 | C136: 71.6
B137: 2006-2 | C137: 76.8
B138: 2006-3 | C138: 75.4
B139: 2006-4 | C139: 88.6

Sheet RegressMatriz
D2: x1 | E2: x2 | F2: x3 | G2: x4 | M2: Y | O2: X
B3: Trimestre | C3: Receitas | D3: t (X) | E3: T1 | F3: T2 | G3: T3 | H3: Log(R) | I3: y^ | J3: 10^Y | L3: Matriz: | P3: x1 | Q3: x2 | R3: x3 | S3: x4
O33: X'
M41: X' Y
M47: X' X
M53: (X' X)-1
M59: Betas: | N59: β0
N60: β1
N61: β2
N62: β3
N63: β4

Sheet ControleProcesso
B2: Gráfico p
A4: 7.1 | B4: A Tabela 7.1 apresenta o número de quartos não-conformes
B5: à chegada deo cliente durante um período de 28 dias. | F5: 7.2 | G5: Faça um Gráfico R a partir da Tabela 7.3 | O5: 7.3 Quantidade de magnésio, medidas em partes por milhão (ppm), existente na água. | Y5: 7.4 | Z5: operações com rerros.
B6: Construa um gráfico de controle para esses dados. | F6: 7.3 Construa um Gráfico X-barra
A8: Tabela 7.1 | F8: Tabela 7.3 Tempos de entrega de bagagens | R8: =MÉDIASE($O$10:$O$129;Q10;$P$10:$P$129) | Y8: Tabela 7.4 Operações não desejadas
A9: Dia | B9: Quartos | C9: Quartos não-conformes | D9: Proporção | F9: Dia | G9: Tempos de Entrega em Minutos | L9: Média | M9: Amplitude | O9: Amostra | P9: Magnésio | Q9: Amostra | R9: Média | S9: Amplitude | Y9: Dia | Z9: Op. não Desejadas | AA9: Total | AB9: p_i
A10: 1 | B10: 200 | C10: 16 | F10: 1 | G10: 6.7 | H10: 11.7 | I10: 9.7 | J10: 7.5 | K10: 7.8 | O10: 1 | P10: 19.91388845 | T10: 7.3.a Construa um gráfico de controle para a Amplitude | Y10: 1 | Z10: 2 | AA10: 74
A11: 2 | B11: 200 | C11: 7 | F11: 2 | G11: 7.6 | H11: 11.4 | I11: 9 | J11: 8.4 | K11: 9.2 | O11: 1 | P11: 19.62412395 | Y11: 2 | Z11: 12 | AA11: 85
A12: 3 | B12: 200 | C12: 21 | F12: 3 | G12: 9.5 | H12: 8.9 | I12: 9.9 | J12: 8.7 | K12: 10.7 | O12: 1 | P12: 19.15176485 | T12: 7.3.b Construa um gráfico de controle para a Média | Y12: 3 | Z12: 13 | AA12: 114
A13: 4 | B13: 200 | C13: 17 | F13: 4 | G13: 9.8 | H13: 13.2 | I13: 6.9 | J13: 9.3 | K13: 9.4 | O13: 1 | P13: 19.84501377 | Y13: 4 | Z13: 33 | AA13: 136
A14: 5 | B14: 200 | C14: 25 | F14: 5 | G14: 11 | H14: 9.9 | I14: 11.3 | J14: 11.6 | K14: 8.5 | O14: 2 | P14: 20.4639844 | T14: 7.3.c O processo está sob controle? | Y14: 5 | Z14: 5 | AA14: 97
A15: 6 | B15: 200 | C15: 19 | F15: 6 | G15: 8.3 | H15: 8.4 | I15: 9.7 | J15: 9.8 | K15: 7.1 | O15: 2 | P15: 20.4432 | Y15: 6 | Z15: 20 | AA15: 115
A16: 7 | B16: 200 | C16: 16 | F16: 7 | G16: 9.4 | H16: 9.3 | I16: 8.2 | J16: 7.1 | K16: 6.1 | O16: 2 | P16: 20.34491533 | Y16: 7 | Z16: 17 | AA16: 108
A17: 8 | B17: 200 | C17: 15 | F17: 8 | G17: 11.2 | H17: 9.8 | I17: 10.5 | J17: 9 | K17: 9.7 | O17: 2 | P17: 19.61255186 | Y17: 8 | Z17: 10 | AA17: 76
A18: 9 | B18: 200 | C18: 11 | F18: 9 | G18: 10 | H18: 10.7 | I18: 9 | J18: 8.2 | K18: 11 | O18: 3 | P18: 20.25478964 | Y18: 9 | Z18: 8 | AA18: 69
A19: 10 | B19: 200 | C19: 12 | F19: 10 | G19: 8.6 | H19: 5.8 | I19: 8.7 | J19: 9.5 | K19: 11.4 | O19: 3 | P19: 19.72641287 | Y19: 10 | Z19: 18 | AA19: 98
A20: 11 | B20: 200 | C20: 22 | F20: 11 | G20: 10.7 | H20: 8.6 | I20: 9.1 | J20: 10.9 | K20: 8.6 | O20: 3 | P20: 19.98051578 | Y20: 11 | Z20: 3 | AA20: 104
A21: 12 | B21: 200 | C21: 20 | F21: 12 | G21: 10.8 | H21: 8.3 | I21: 10.6 | J21: 10.3 | K21: 10 | O21: 3 | P21: 20.32020331 | Y21: 12 | Z21: 12 | AA21: 98
A22: 13 | B22: 200 | C22: 17 | F22: 13 | G22: 9.5 | H22: 10.5 | I22: 7 | J22: 8.6 | K22: 10.1 | O22: 4 | P22: 20.38682321 | Y22: 13 | Z22: 15 | AA22: 105
A23: 14 | B23: 200 | C23: 26 | F23: 14 | G23: 12.9 | H23: 8.9 | I23: 8.1 | J23: 9 | K23: 7.6 | O23: 4 | P23: 19.42669718 | Y23: 14 | Z23: 6 | AA23: 98
A24: 15 | B24: 200 | C24: 18 | F24: 15 | G24: 7.8 | H24: 9 | I24: 12.2 | J24: 9.1 | K24: 11.7 | O24: 4 | P24: 20.35522678 | Y24: 15 | Z24: 21 | AA24: 204
A25: 16 | B25: 200 | C25: 13 | F25: 16 | G25: 11.1 | H25: 9.9 | I25: 8.8 | J25: 5.5 | K25: 9.5 | O25: 4 | P25: 19.85108563 | Y25: 16 | Z25: 3 | AA25: 54
A26: 17 | B26: 200 | C26: 15 | F26: 17 | G26: 9.2 | H26: 9.7 | I26: 12.3 | J26: 8.1 | K26: 8.5 | O26: 5 | P26: 20.01626326 | Y26: 17 | Z26: 12 | AA26: 74
A27: 18 | B27: 200 | C27: 10 | F27: 18 | G27: 9 | H27: 8.1 | I27: 10.2 | J27: 9.7 | K27: 8.4 | O27: 5 | P27: 20.01562135 | Y27: 18 | Z27: 11 | AA27: 103
A28: 19 | B28: 200 | C28: 14 | F28: 19 | G28: 9.9 | H28: 10.1 | I28: 8.9 | J28: 9.6 | K28: 7.1 | O28: 5 | P28: 20.12807383 | Y28: 19 | Z28: 11 | AA28: 100
A29: 20 | B29: 200 | C29: 25 | F29: 20 | G29: 10.7 | H29: 9.8 | I29: 10.2 | J29: 8 | K29: 10.2 | O29: 5 | P29: 20.33589209 | Y29: 20 | Z29: 14 | AA29: 88
A30: 21 | B30: 200 | C30: 19 | F30: 21 | G30: 9 | H30: 10 | I30: 9.6 | J30: 10.6 | K30: 9 | O30: 6 | P30: 19.89224902 | Y30: 21 | Z30: 4 | AA30: 58
A31: 22 | B31: 200 | C31: 12 | F31: 22 | G31: 10.7 | H31: 9.8 | I31: 9.4 | J31: 7 | K31: 8.9 | O31: 6 | P31: 19.76607803 | Y31: 22 | Z31: 10 | AA31: 69
A32: 23 | B32: 200 | C32: 6 | F32: 23 | G32: 10.2 | H32: 10.5 | I32: 9.5 | J32: 12.2 | K32: 9.1 | O32: 6 | P32: 20.92107999 | Y32: 23 | Z32: 19 | AA32: 135
A33: 24 | B33: 200 | C33: 12 | F33: 24 | G33: 10 | H33: 11.1 | I33: 9.5 | J33: 8.8 | K33: 9.9 | O33: 6 | P33: 20.09320345 | Y33: 24 | Z33: 1 | AA33: 67
A34: 25 | B34: 200 | C34: 18 | F34: 25 | G34: 9.6 | H34: 8.8 | I34: 11.4 | J34: 12.2 | K34: 9.3 | O34: 7 | P34: 19.88636051 | Y34: 25 | Z34: 11 | AA34: 77
A35: 26 | B35: 200 | C35: 15 | F35: 26 | G35: 8.2 | H35: 7.9 | I35: 8.4 | J35: 9.5 | K35: 9.2 | O35: 7 | P35: 20.44667631 | Y35: 26 | Z35: 12 | AA35: 88
A36: 27 | B36: 200 | C36: 20 | F36: 27 | G36: 7.1 | H36: 11.1 | I36: 10.8 | J36: 11 | K36: 10.2 | O36: 7 | P36: 19.44397587 | Y36: 27 | Z36: 4 | AA36: 66
A37: 28 | B37: 200 | C37: 22 | F37: 28 | G37: 11.1 | H37: 6.6 | I37: 12 | J37: 11.5 | K37: 9.7 | O37: 7 | P37: 19.95347981 | Y37: 28 | Z37: 11 | AA37: 72
O38: 8 | P38: 20.07825551 | Y38: 29 | Z38: 13 | AA38: 118
O39: 8 | P39: 20.12644813 | Y39: 30 | Z39: 15 | AA39: 138
O40: 8 | P40: 20.10726786
O41: 8 | P41: 19.3189183
O42: 9 | P42: 20.30269897 | T42: R_b | Y42: soma Xi=
A43: 7.4 Operações em corretora de valores. | O43: 9 | P43: 20.41608475 | Y43: soma ni =
O44: 9 | P44: 20.67615383 | T44: X_bb | Y44: p barra =
B45: p barra = | O45: 9 | P45: 19.60311822
B46: n barra = | O46: 10 | P46: 20.18849261
O47: 10 | P47: 20.00039407
O48: 10 | P48: 20.22774456
C49: LCS = | O49: 10 | P49: 20.59261694
O50: 11 | P50: 19.66141186
O51: 11 | P51: 21.23520814
C52: LCI = | O52: 11 | P52: 20.34899866
O53: 11 | P53: 20.3406
O54: 12 | P54: 20.29758786
A55: Para o gráfico | O55: 12 | P55: 20.11097963
B56: x | C56: y | O56: 12 | P56: 19.63977097
A57: LCS | B57: 1 | C57: =D49 -> 0 | O57: 12 | P57: 20.28646488
B58: 30 | C58: =C57 -> 0 | O58: 13 | P58: 19.83141266
O59: 13 | P59: 19.74942313
A60: LCI | B60: 1 | C60: =D52 -> 0 | O60: 13 | P60: 20.61763925
B61: 30 | C61: =D52 -> 0 | O61: 13 | P61: 20.60340035
O62: 14 | P62: 20.27390639
A63: Média | B63: 1 | C63: =C45 -> 0 | O63: 14 | P63: 20.88092608
B64: 30 | C64: =C63 -> 0 | O64: 14 | P64: 20.61747536
O65: 14 | P65: 20.40173426
O66: 15 | P66: 19.97617559
O67: 15 | P67: 19.02167513
O68: 15 | P68: 20.34258269
O69: 15 | P69: 20.33859734
O70: 16 | P70: 20.45515492
O71: 16 | P71: 19.97005106
O72: 16 | P72: 20.3234037
O73: 16 | P73: 20.83053049
O74: 17 | P74: 19.7380622
O75: 17 | P75: 21.01726913
O76: 17 | P76: 19.61601516
O77: 17 | P77: 19.90063352
O78: 18 | P78: 19.84854822
O79: 18 | P79: 19.26087223
O80: 18 | P80: 19.87933522
O81: 18 | P81: 20.20191441
O82: 19 | P82: 20.76926349
O83: 19 | P83: 20.57822326
O84: 19 | P84: 19.72511263
O85: 19 | P85: 19.4803571
O86: 20 | P86: 20.2110535
O87: 20 | P87: 20.81949261
O88: 20 | P88: 20.00783185
O89: 20 | P89: 19.92890782
O90: 21 | P90: 20.29837249
O91: 21 | P91: 20.09322776
O92: 21 | P92: 20.02770852
O93: 21 | P93: 20.13274639
O94: 22 | P94: 20.47610681
O95: 22 | P95: 21.0643911
O96: 22 | P96: 20.1308
O97: 22 | P97: 20.42457458
O98: 23 | P98: 20.59779134
O99: 23 | P99: 19.73847222
O100: 23 | P100: 20.51915009
O101: 23 | P101: 19.42005824
O102: 24 | P102: 20.19854781
O103: 24 | P103: 20.07860962
O104: 24 | P104: 20.3240963
O105: 24 | P105: 19.50614689
O106: 25 | P106: 19.65971051
O107: 25 | P107: 19.67082554
O108: 25 | P108: 20.25789989
O109: 25 | P109: 20.40757483
O110: 26 | P110: 20.71678811
O111: 26 | P111: 20.58213283
O112: 26 | P112: 20.70580927
O113: 26 | P113: 19.99003955
O114: 27 | P114: 19.76939992
O115: 27 | P115: 19.39986451
O116: 27 | P116: 20.4948059
O117: 27 | P117: 19.82616538
O118: 28 | P118: 19.99056535
O119: 28 | P119: 19.65312183
O120: 28 | P120: 19.40954298
O121: 28 | P121: 19.58285346
O122: 29 | P122: 19.43733818
O123: 29 | P123: 20.14924559
O124: 29 | P124: 20.14305286
O125: 29 | P125: 20.76442311
O126: 30 | P126: 20.03367758
O127: 30 | P127: 19.95552171
O128: 30 | P128: 19.85768552
O129: 30 | P129: 19.91111034

Sheet CP1e2
Q4: Gráfico p
B9: nb = | E9: LCI | F9: p_b | G9: LCS | H9: x
H10: 1
B11: LCS | H11: 28
B13: p_b
B15: LCI
B20: Gráfico R | E20: LCI | F20: B_b | G20: LCS | H20: x | Q20: Gráfico R
H21: 1
B22: LCS | H22: 28
B24: R_b
B26: LCI
B35: Gráfico X
Q38: Gráfico X_b
B39: R_b
E40: LCI | F40: X_bb | G40: LCS | H40: x
H41: 1
B42: LCS | H42: 28
B44: X_bb
B46: LCI

Sheet CP3
B7: Gráfico R | E7: LCI | F7: R_b | G7: LCS | H7: x | Q7: Gráfico R
H8: 1
B9: LCS | H9: 30
B11: R_b
B13: LCI
B22: Gráfico X
Q25: Gráfico X_b
B26: R_b
E27: LCI | F27: X_bb | G27: LCS | H27: x
H28: 1
B29: LCS | H29: 30
B31: X_bb
B33: LCI

Sheet CP4
Q4: Gráfico p
B9: nb = | E9: LCI | F9: p_b | G9: LCS | H9: x
H10: 1
B11: LCS | H11: 30
B13: p_b
B15: LCI

Sheet Empresas
A1: Empresa | B1: Setores | C1: Ativo Total (R$) | D1: PL (R$) | E1: Lucro por ação R$ | F1: Liq Geral | G1: Liq Corrente | H1: Liq Seca | I1: ROA | J1: Dívida Líquida | K1: Dívida Bruta | Q1: Abatedouros | R1: Setor-001
A2: 1 | B2: Outras outras indústrias | C2: 13235 | D2: 1170 | E2: -0.3155537315 | F2: 0.9 | G2: 1.3 | H2: 0.7 | I2: -17.1 | J2: 3016 | K2: 3321 | Q2: Administração de empresas e empreendimentos | R2: Setor-002
A3: 2 | B3: Outras indústrias de alimentos | C3: 25570 | D3: 7157 | E3: 0.1683292836 | F3: 1 | G3: 0.9 | H3: 0.7 | I3: 3.4 | J3: 344 | K3: 2634 | Q3: Agricultura | R3: Setor-003
A4: 3 | B4: Indústria de bebidas | C4: 27662 | D4: 2651 | E4: -0.005700639396 | F4: 1.1 | G4: 1.7 | H4: 1.7 | I4: -0.3 | J4: 4720 | K4: 4720 | Q4: Agua, esgoto e outros sistemas | R4: Setor-004
A5: 4 | B5: Concerto e manutenção de equipamentos | C5: 37864 | D5: 3279 | E5: -2.146374829 | F5: 0.5 | G5: 0.4 | H5: 0.4 | I5: -8.3 | J5: 21490 | K5: 21540 | Q5: Atividades auxiliares ao transporte | R5: Setor-005
A6: 5 | B6: Serviço de armazenamento | C6: 43455 | D6: 15497 | E6: 20.95864456 | F6: 0.3 | G6: 0.5 | H6: 0.5 | I6: 9.7 | J6: 10095 | K6: 10715 | Q6: Atividades auxiliares ao transporte aquático | R6: Setor-006
A7: 6 | B7: Hotel, motel ou similar | C7: 43733 | D7: 879 | E7: 10.250501 | F7: 1 | G7: 1.4 | H7: 1.4 | I7: 11.7 | J7: -8082 | K7: 4855 | Q7: Atividades auxiliares ao transporte rodoviário | R7: Setor-007
A8: 7 | B8: Outras construções pesadas | C8: 47438 | D8: 1871 | E8: -0.01915742723 | F8: 0.9 | G8: 1.7 | H8: 1.4 | I8: -45.5 | J8: 373 | K8: 390 | Q8: Atividades relacionadas a imóveis | R8: Setor-008
A9: 8 | B9: Outras outras indústrias | C9: 49800 | D9: 4094 | E9: -4.219890984e-05 | F9: 0.8 | G9: 0.9 | H9: 0.5 | I9: -52 | J9: 19492 | K9: 20703 | Q9: Bolsa de valores e commodities | R9: Setor-009
A10: 9 | B10: Indústria de produtos de madeira compensada e afins | C10: 55569 | D10: 9538 | E10: -13.11378849 | F10: 0.3 | G10: 0.5 | H10: 0.4 | I10: -17.6 | J10: 27108 | K10: 27322 | Q10: Comércio atacadista de bens não duráveis variados | R10: Setor-010
A11: 10 | B11: Indústria de equipamentos e materiais para uso médico | C11: 62707 | D11: 36299 | E11: 6.316326531 | F11: 1.9 | G11: 2.1 | H11: 1.2 | I11: 9.9 | J11: 2333 | K11: 4136 | Q11: Comercio atacadista de petróleo e produtos de petróleo | R11: Setor-011
A12: 11 | B12: Outras indústrias de produtos de metal | C12: 66670 | D12: 37950 | E12: -0.0203850822 | F12: 1.6 | G12: 2 | H12: 1.3 | I12: -8.9 | J12: 15093 | K12: 16979 | Q12: Comércio atacadista de remédios | R12: Setor-012
A13: 12 | B13: Indústria de parafusos, arruelas, porcas e produtos torneados | C13: 70140 | D13: 29132 | E13: 0.8388429752 | F13: 1.3 | G13: 1.2 | H13: 0.8 | I13: 0.9 | J13: 14649 | K13: 14984 | Q13: Concerto e manutenção de equipamentos | R13: Setor-013
A14: 13 | B14: Concessionárias de outros veículos motorizados | C14: 85216 | D14: 46492 | E14: 160.7073171 | F14: 1.8 | G14: 1.8 | H14: 1.3 | I14: 7.7 | J14: 15223 | K14: 16038 | Q14: Concessionárias de outros veículos motorizados | R14: Setor-014
A15: 14 | B15: Transformação de aço em produtos de aço | C15: 98871 | D15: 61057 | E15: -0.04112841298 | F15: 0.8 | G15: 0.7 | H15: 0.4 | I15: -6.9 | J15: 3010 | K15: 4017 | Q15: Construção | R15: Setor-015
A16: 15 | B16: Moinho de grãos | C16: 102600 | D16: 93104 | E16: 0.04237399596 | F16: 8.2 | G16: 4.4 | H16: 3.1 | I16: 8.8 | J16: -2318 | K16: 5076 | Q16: Construção de edifícios não residenciais | R16: Setor-016
A17: 16 | B17: Cultivo de frutas e nozes | C17: 106680 | D17: 54299 | E17: 0.01953248 | F17: 0.9 | G17: 1.6 | H17: 0.6 | I17: 3.7 | J17: 30321 | K17: 33288 | Q17: Construção de edifícios residenciais | R17: Setor-017
A18: 17 | B18: Indústria de bebidas | C18: 112007 | D18: 60351 | E18: 318.0819672 | F18: 1 | G18: 1.1 | H18: 0.7 | I18: 17.3 | J18: -2403 | K18: 3453 | Q18: Construção de estradas, ruas, pontes e tuneis | R18: Setor-018
A19: 18 | B19: Indústria de alimentos | C19: 114653 | D19: 54183 | E19: 0.002056381824 | F19: 1.8 | G19: 2.8 | H19: 2.8 | I19: 0.4 | J19: 1854 | K19: 1925 | Q19: Construção e empreendimentos imobiliarios | R19: Setor-019
A20: 19 | B20: Cultivo de frutas e nozes | C20: 124082 | D20: 62870 | E20: -0.2123829973 | F20: 0.8 | G20: 0.9 | H20: 0.6 | I20: -8.6 | J20: 25989 | K20: 36132 | Q20: Consultoria administrativa, científica e técnica | R20: Setor-020
A21: 20 | B21: Construção e empreendimentos imobiliarios | C21: 127541 | D21: 60038 | E21: 0.001977519672 | F21: 1.5 | G21: 1.4 | H21: 1.4 | I21: 0.9 | J21: 6577 | K21: 15725 | Q21: Cultivo de frutas e nozes | R21: Setor-021
A22: 21 | B22: Indústria de equipamentos de audio e video | C22: 134601 | D22: 118441 | E22: -2.083023786 | F22: 8 | G22: 1.6 | H22: 1 | I22: -14.8 | J22: -12973 | K22: 16 | Q22: Distribuição de gas natural | R22: Setor-022
A23: 22 | B23: Indústria de ferramentas de metal não motoriz. e cutelaria | C23: 135752 | D23: 107134 | E23: 1.202936162 | F23: 4.7 | G23: 0 | H23: 0 | I23: 17.2 | J23: 17739 | K23: 17761 | Q23: Editoras de jornais, livros e base de dados | R23: Setor-023
A24: 23 | B24: Consultoria administrativa, científica e técnica | C24: 136083 | D24: 32226 | E24: 0.0211875 | F24: 1.1 | G24: 1.2 | H24: 1.1 | I24: 1.5 | J24: 38570 | K24: 43448 | Q24: Editoras de software | R24: Setor-024
A25: 24 | B25: Outras construções pesadas | C25: 137488 | D25: 1198 | E25: 453.5925926 | F25: 0.7 | G25: 1.4 | H25: 1.4 | I25: 8.9 | J25: -3703 | K25: 13279 | Q25: Educacão | R25: Setor-025
A26: 25 | B26: Indústria de molas e produtos de arame | C26: 138204 | D26: 84789 | E26: -2.129971591 | F26: 0.6 | G26: 0.6 | H26: 0.4 | I26: -4.3 | J26: 25767 | K26: 26242 | Q26: Empresa de eletricidade, gas e agua | R26: Setor-026
A27: 26 | B27: Outras construções pesadas | C27: 152610 | D27: 104353 | E27: 4.341497881e-06 | F27: 3.7 | G27: 4.8 | H27: 4.8 | I27: 0.1 | J27: 2837 | K27: 2846 | Q27: Escola de ensino superior | R27: Setor-027
A28: 27 | B28: Outras indústrias de produtos de metal | C28: 155887 | D28: 110871 | E28: 2.660248167 | F28: 2.6 | G28: 2.8 | H28: 2 | I28: 16.7 | J28: -11375 | K28: 8396 | Q28: Extração de minerais não metálicos | R28: Setor-028
A29: 28 | B29: Indústria de eletrodomésticos | C29: 158810 | D29: 92881 | E29: -0.2453546296 | F29: 0.9 | G29: 1 | H29: 0.7 | I29: -2 | J29: 10675 | K29: 15945 | Q29: Extração de petróleo e gas | R29: Setor-029
A30: 29 | B30: Administração de empresas e empreendimentos | C30: 169066 | D30: 67612 | E30: 8.064785281 | F30: 1.3 | G30: 1.6 | H30: 1.6 | I30: 25.1 | J30: -50098 | K30: 66723 | Q30: Forjarias e estamparias | R30: Setor-030
A31: 30 | B31: Outras indústrias de produtos de metal | C31: 188118 | D31: 82550 | E31: 4.870478983 | F31: 1.1 | G31: 1.5 | H31: 0.8 | I31: 5.3 | J31: 37719 | K31: 39788 | Q31: Fundição | R31: Setor-031
A32: 31 | B32: Indústria de equipamentos para geração e distrib. de energia | C32: 189044 | D32: 76165 | E32: 0.4449662238 | F32: 1.4 | G32: 1.4 | H32: 1 | I32: 10.1 | J32: -14203 | K32: 19659 | Q32: Geração, transmissão e distribuição de energia elétrica | R32: Setor-032
A33: 32 | B33: Construção de edifícios não residenciais | C33: 200509 | D33: 129346 | E33: 14.59337722 | F33: 0.6 | G33: 1.4 | H33: 1.4 | I33: 4.7 | J33: 35623 | K33: 48883 | Q33: Hotel, motel ou similar | R33: Setor-033
A34: 33 | B34: Transformação de aço em produtos de aço | C34: 206357 | D34: 116588 | E34: 0.4953355985 | F34: 1.8 | G34: 2.4 | H34: 1.7 | I34: 2 | J34: -6550 | K34: 37913 | Q34: Impressão e atividades auxiliares | R34: Setor-034
A35: 34 | B35: Outras indústrias de produtos de metal | C35: 208238 | D35: 185002 | E35: 8.140379061 | F35: 8.2 | G35: 9.2 | H35: 7.9 | I35: 9.9 | J35: -124891 | K35: 9745 | Q35: Indústria de açúcar e produtos de confeitaria | R35: Setor-035
A36: 35 | B36: Loja de roupas | C36: 211551 | D36: 167738 | E36: 1.259863445 | F36: 3.9 | G36: 3.8 | H36: 2.9 | I36: 12.8 | J36: -69105 | K36: 540 | Q36: Indústria de alimentos | R36: Setor-036
A37: 36 | B37: Tecelagens | C37: 213667 | D37: 112819 | E37: 64.63448276 | F37: 1.4 | G37: 2.1 | H37: 1.4 | I37: 4.4 | J37: 29394 | K37: 51681 | Q37: Indústria de autopeças | R37: Setor-037
A38: 37 | B38: Indústria de laticínios | C38: 229063 | D38: 105928 | E38: -0.1082965517 | F38: 0.9 | G38: 0.8 | H38: 0.5 | I38: -6.9 | J38: 21389 | K38: 21654 | Q38: Indústria de bebidas | R38: Setor-038
A39: 38 | B39: Indústria de frutas e vegetais em conserva e comidas especiais | C39: 236264 | D39: 101492 | E39: 1.114202179 | F39: 0.9 | G39: 1.3 | H39: 0.5 | I39: 5.3 | J39: 83852 | K39: 84196 | Q39: Indústria de calçados | R39: Setor-039
A40: 39 | B40: Tecelagens | C40: 245496 | D40: 101418 | E40: 0.6761816181 | F40: 1 | G40: 1.6 | H40: 1.1 | I40: 3.3 | J40: 21994 | K40: 55950 | Q40: Indústria de carrocerias e trailers | R40: Setor-040
A41: 40 | B41: Fundição | C41: 250898 | D41: 191823 | E41: 0.0002685301389 | F41: 3.3 | G41: 4.4 | H41: 3.7 | I41: 7.7 | J41: -77160 | K41: 12965 | Q41: Indústria de cimento e produtos de concreto | R41: Setor-041
A42: 41 | B42: Indústria de roupas de tecido | C42: 251739 | D42: 51056 | E42: -3.907885603 | F42: 0.9 | G42: 1.7 | H42: 1.1 | I42: -22.4 | J42: 150074 | K42: 152914 | Q42: Indústria de computadores e periféricos | R42: Setor-042
A43: 42 | B43: Tecelagens | C43: 256369 | D43: 184370 | E43: 0.6837578564 | F43: 2.2 | G43: 2.9 | H43: 1.9 | I43: 10.5 | J43: 37107 | K43: 39536 | Q43: Indústria de computadores e produtos eletrônicos | R43: Setor-043
A44: 43 | B44: Outras indústrias de tecidos | C44: 273879 | D44: 197525 | E44: 1.120756862 | F44: 2.8 | G44: 3 | H44: 2.4 | I44: 13.2 | J44: -42322 | K44: 7774 | Q44: Indústria de eletrodomésticos | R44: Setor-044
A45: 44 | B45: Indústria de bebidas | C45: 277334 | D45: 158537 | E45: 0.007745133287 | F45: 0.9 | G45: 1.1 | H45: 0.7 | I45: 1.5 | J45: 33048 | K45: 34344 | Q45: Indústria de equipamentos aeroespacias | R45: Setor-045
A46: 45 | B46: Outros serviços de apoio | C46: 285909 | D46: 56319 | E46: 0.03254943747 | F46: 0.2 | G46: 0.7 | H46: 0.7 | I46: 0 | J46: 24883 | K46: 43397 | Q46: Indústria de equipamentos de audio e video | R46: Setor-046
A47: 46 | B47: Serviços de apoio a empresas | C47: 292104 | D47: 139635 | E47: 0.3911030211 | F47: 0.8 | G47: 1 | H47: 1 | I47: 6.5 | J47: 67233 | K47: 75794 | Q47: Indústria de equipamentos de comunicação | R47: Setor-047
A48: 47 | B48: Indústria de roupas de tecido | C48: 293997 | D48: 235823 | E48: 0.3597055028 | F48: 4.4 | G48: 5.7 | H48: 4 | I48: 0.6 | J48: -84721 | K48: 27056 | Q48: Indústria de equipamentos de iluminação elétrica | R48: Setor-048
A49: 48 | B49: Loja de artigos para saúde e cuidados pessoais | C49: 306054 | D49: 148819 | E49: 5.568751454 | F49: 1.7 | G49: 1.9 | H49: 1 | I49: 8.4 | J49: -18232 | K49: 17407 | Q49: Indústria de equipamentos de refrigeração | R49: Setor-049
A50: 49 | B50: Construção e empreendimentos imobiliarios | C50: 307995 | D50: 31491 | E50: -1.432373402 | F50: 0.7 | G50: 3.1 | H50: 3.1 | I50: -23 | J50: -135925 | K50: 26 | Q50: Indústria de equipamentos e materiais para uso médico | R50: Setor-050
A51: 50 | B51: Serviços de processamento de dados | C51: 319602 | D51: 236447 | E51: 1.409105022 | F51: 2.3 | G51: 3.5 | H51: 3.5 | I51: 12.8 | J51: -106358 | K51: 2553 | Q51: Indústria de equipamentos para geração e distrib. de energia | R51: Setor-051
A52: 51 | B52: Indústria de vidro e produtos de vidro | C52: 330555 | D52: 189951 | E52: 0.6381913248 | F52: 1 | G52: 2.1 | H52: 1.4 | I52: 2.6 | J52: 74999 | K52: 92677 | Q52: Indústria de estruturas metálicas | R52: Setor-052
A53: 52 | B53: Tecelagens | C53: 347444 | D53: 170110 | E53: -4.257704902 | F53: 1.1 | G53: 1.2 | H53: 0.6 | I53: -4.4 | J53: 61208 | K53: 86196 | Q53: Indústria de ferragens | R53: Setor-053
A54: 53 | B54: Outras construções pesadas | C54: 348053 | D54: 56649 | E54: -0.4335862587 | F54: 0.9 | G54: 0.5 | H54: 0.5 | I54: -1.5 | J54: 3822 | K54: 3836 | Q54: Indústria de ferramentas de metal não motoriz. e cutelaria | R54: Setor-054
A55: 54 | B55: Indústria de bebidas | C55: 363624 | D55: 289228 | E55: 0.07819723896 | F55: 3.8 | G55: 1.1 | H55: 1 | I55: 2 | J55: 2849 | K55: 8409 | Q55: Indústria de fertilizantes e pesticidas | R55: Setor-055
A56: 55 | B56: Administração de empresas e empreendimentos | C56: 371289 | D56: 175445 | E56: -0.04173142342 | F56: 1.4 | G56: 1.3 | H56: 1 | I56: -1.2 | J56: 67648 | K56: 84692 | Q56: Indústria de fibras e borracha sintéticas, resinas e filamentos | R56: Setor-056
A57: 56 | B57: Geração, transmissão e distribuição de energia elétrica | C57: 384136 | D57: 356814 | E57: 0.09245344659 | F57: 0.5 | G57: 0.9 | H57: 0.8 | I57: 0.2 | J57: 10480 | K57: 16000 | Q57: Indústria de frutas e vegetais em conserva e comidas especiais | R57: Setor-057
A58: 57 | B58: Telecomunicações | C58: 397861 | D58: 106415 | E58: -3.138077446 | F58: 0.8 | G58: 0.6 | H58: 0.5 | I58: -4.6 | J58: 74584 | K58: 93480 | Q58: Indústria de fumo | R58: Setor-058
A59: 58 | B59: Moinho de grãos | C59: 403277 | D59: 205649 | E59: 0.5092592593 | F59: 1.2 | G59: 1.3 | H59: 0.8 | I59: 3.2 | J59: 141537 | K59: 148908 | Q59: Indústria de laticínios | R59: Setor-059
A60: 59 | B60: Indústria de estruturas metálicas | C60: 414710 | D60: 167192 | E60: -0.005358726127 | F60: 1.2 | G60: 2.5 | H60: 1.8 | I60: -1.7 | J60: 84465 | K60: 162932 | Q60: Industria de máquinas agrícolas, de construção e mineração | R60: Setor-060
A61: 60 | B61: Educacão | C61: 423057 | D61: 322918 | E61: 0.1550374157 | F61: 2 | G61: 2.3 | H61: 2.1 | I61: 10.4 | J61: -89606 | K61: 2895 | Q61: Indústria de máquinas indústriais | R61: Setor-061
A62: 61 | B62: Distribuição de gas natural | C62: 425305 | D62: 347887 | E62: 3.472501604 | F62: 3 | G62: 4.6 | H62: 4.1 | I62: 5.9 | J62: -151329 | K62: 1243 | Q62: Indústria de molas e produtos de arame | R62: Setor-062
A63: 62 | B63: Indústria de autopeças | C63: 434584 | D63: 133464 | E63: 0.5897516258 | F63: 0.8 | G63: 1.4 | H63: 0.9 | I63: 1.7 | J63: 209425 | K63: 242234 | Q63: Indústria de motores, turbinas e transmissores de energia | R63: Setor-063
A64: 63 | B64: Indústria de outros produtos de minerais não metálicos | C64: 442753 | D64: 266452 | E64: 1.145452302 | F64: 1.7 | G64: 1.8 | H64: 1.3 | I64: 18.5 | J64: 6134 | K64: 29295 | Q64: Indústria de móveis e afins | R64: Setor-064
A65: 64 | B65: Indústria química | C65: 451507 | D65: 182363 | E65: 0.06685193225 | F65: 1 | G65: 2.2 | H65: 1.9 | I65: 0.7 | J65: -9340 | K65: 73814 | Q65: Indústria de outros produtos de minerais não metálicos | R65: Setor-065
A66: 65 | B66: Indústria de produtos de cerâmica e refratários | C66: 455457 | D66: 17376 | E66: -0.03140702727 | F66: 0.6 | G66: 0.7 | H66: 0.4 | I66: -1.1 | J66: 100859 | K66: 108405 | Q66: Indústria de papel , celulose e papelão | R66: Setor-066
A67: 66 | B67: Indústria de roupas de malha | C67: 460518 | D67: 254421 | E67: 0.2328914783 | F67: 1.6 | G67: 2.2 | H67: 1.5 | I67: 5.7 | J67: 70876 | K67: 106781 | Q67: Indústria de parafusos, arruelas, porcas e produtos torneados | R67: Setor-067
A68: 67 | B68: Atividades relacionadas a imóveis | C68: 469423 | D68: 409958 | E68: 0.03676593778 | F68: 2.2 | G68: 2.2 | H68: 2.2 | I68: 1.3 | J68: -53681 | K68: 153 | Q68: Indústria de produtos de borracha | R68: Setor-068
A69: 68 | B69: Indústria de fertilizantes e pesticidas | C69: 481007 | D69: 213406 | E69: -0.8786046973 | F69: 0.8 | G69: 1.1 | H69: 0.6 | I69: -1.8 | J69: 154567 | K69: 164217 | Q69: Indústria de produtos de cerâmica e refratários | R69: Setor-069
A70: 69 | B70: Indústria de autopeças | C70: 482874 | D70: 354860 | E70: 0.2899256203 | F70: 2.8 | G70: 1.8 | H70: 1.5 | I70: 14.5 | J70: -88192 | K70: 10198 | Q70: Indústria de produtos de madeira compensada e afins | R70: Setor-070
A71: 70 | B71: Moinho de grãos | C71: 490774 | D71: 180948 | E71: 0.924173063 | F71: 1.1 | G71: 1.1 | H71: 0.4 | I71: 5.5 | J71: 245365 | K71: 268098 | Q71: Indústria de produtos de metal | R71: Setor-071
A72: 71 | B72: Indústria de computadores e produtos eletrônicos | C72: 503690 | D72: 381032 | E72: 0.9028116185 | F72: 2 | G72: 2.8 | H72: 2.4 | I72: 9.4 | J72: -53121 | K72: 14964 | Q72: Indústria de produtos de papel e papelão | R72: Setor-072
A73: 72 | B73: Indústria química | C73: 513237 | D73: 289939 | E73: -0.002544737136 | F73: 2 | G73: 10.8 | H73: 8 | I73: -0.3 | J73: -176160 | K73: 1756 | Q73: Indústria de produtos de plástico | R73: Setor-073
A74: 73 | B74: Indústria química | C74: 513816 | D74: 395180 | E74: 0.00448072367 | F74: 1.7 | G74: 1.9 | H74: 0.7 | I74: 2 | J74: 12728 | K74: 29128 | Q74: Indústria de roupas de malha | R74: Setor-074
A75: 74 | B75: Construção de edifícios residenciais | C75: 515324 | D75: 170311 | E75: -0.04946871508 | F75: 1.4 | G75: 1.6 | H75: 0.8 | I75: -0.9 | J75: 127980 | K75: 144025 | Q75: Indústria de roupas de tecido | R75: Setor-075
A76: 75 | B76: Indústria de produtos de plástico | C76: 521849 | D76: 264908 | E76: 0.9896963785 | F76: 1 | G76: 1.7 | H76: 1.3 | I76: 3.1 | J76: 132805 | K76: 151799 | Q76: Indústria de vidro e produtos de vidro | R76: Setor-076
A77: 76 | B77: Serviços ambulatoriais de saúde | C77: 525721 | D77: 314454 | E77: -0.8556026943 | F77: 2.1 | G77: 2.8 | H77: 2.8 | I77: -26.4 | J77: -202423 | K77: 52 | Q77: Indústria química | R77: Setor-077
A78: 77 | B78: TV a cabo | C78: 526477 | D78: 144676 | E78: -1.206054458 | F78: 0.4 | G78: 2.2 | H78: 2.1 | I78: -25.3 | J78: 115336 | K78: 223775 | Q78: Indústria química básica | R78: Setor-078
A79: 78 | B79: Indústria de autopeças | C79: 529392 | D79: 227850 | E79: 0.4184126133 | F79: 1.2 | G79: 2.5 | H79: 2 | I79: 5.3 | J79: 30474 | K79: 232137 | Q79: Instituição de intermediacao de crédito | R79: Setor-079
A80: 79 | B80: Abatedouros | C80: 537439 | D80: 248200 | E80: 0.1664664599 | F80: 1.2 | G80: 1.5 | H80: 0.8 | I80: 9.5 | J80: -8615 | K80: 47895 | Q80: Laboratório de exames médicos | R80: Setor-080
A81: 80 | B81: Geração, transmissão e distribuição de energia elétrica | C81: 537916 | D81: 307494 | E81: 0.5056288476 | F81: 2.3 | G81: 0.3 | H81: 0.3 | I81: 32.4 | J81: 163114 | K81: 182016 | Q81: Locadora de automóveis | R81: Setor-081
A82: 81 | B82: Indústria de papel , celulose e papelão | C82: 546521 | D82: 88101 | E82: 0.5782394202 | F82: 0.4 | G82: 0.6 | H82: 0.5 | I82: 0.9 | J82: 291176 | K82: 303800 | Q82: Locadora de imóveis | R82: Setor-082
A83: 82 | B83: Indústria de equipamentos de iluminação elétrica | C83: 563487 | D83: 205669 | E83: 0.07868549535 | F83: 1.2 | G83: 1.3 | H83: 1.1 | I83: 1.6 | J83: -66832 | K83: 60476 | Q83: Loja de artigos para saúde e cuidados pessoais | R83: Setor-083
A84: 83 | B84: Moinho de grãos | C84: 564929 | D84: 183177 | E84: 0.1552636553 | F84: 1.2 | G84: 1.7 | H84: 1.3 | I84: 0.3 | J84: 129385 | K84: 259398 | Q84: Loja de departamentos | R84: Setor-084
A85: 84 | B85: Atividades auxiliares ao transporte | C85: 583423 | D85: 358306 | E85: 0.9240868198 | F85: 1.1 | G85: 1.4 | H85: 1.4 | I85: 10.5 | J85: 30299 | K85: 79962 | Q85: Loja de roupas | R85: Setor-085
A86: 85 | B86: Indústria química básica | C86: 584616 | D86: 432655 | E86: 0.4535810704 | F86: 2.2 | G86: 3.7 | H86: 2.7 | I86: 2.4 | J86: -19212 | K86: 34975 | Q86: Mineração de metais | R86: Setor-086
A87: 86 | B87: Administração de empresas e empreendimentos | C87: 605525 | D87: 89381 | E87: -0.349504429 | F87: 0.6 | G87: 0.5 | H87: 0.4 | I87: -6 | J87: 291434 | K87: 312672 | Q87: Moinho de grãos | R87: Setor-087
A88: 87 | B88: Outras outras indústrias | C88: 650920 | D88: 507842 | E88: -0.31085227 | F88: 2.4 | G88: 4.7 | H88: 3.2 | I88: -10.9 | J88: -46622 | K88: 78396 | Q88: Outras construções pesadas | R88: Setor-088
A89: 88 | B89: Construção de estradas, ruas, pontes e tuneis | C89: 654759 | D89: 223990 | E89: 0.1007142857 | F89: 0.7 | G89: 0.1 | H89: 0.1 | I89: 0.2 | J89: 94066 | K89: 94496 | Q89: Outras indústria de artigos de madeira | R89: Setor-089
A90: 89 | B90: Indústria de laticínios | C90: 661755 | D90: 135178 | E90: -0.1988250014 | F90: 0.7 | G90: 1 | H90: 0.8 | I90: -5 | J90: 240630 | K90: 255990 | Q90: Outras indústrias da recreação | R90: Setor-090
A91: 90 | B91: Mineração de metais | C91: 668907 | D91: 28374 | E91: -1.147559801 | F91: 0 | G91: 0 | H91: 0 | I91: -5 | J91: 619819 | K91: 627981 | Q91: Outras indústrias de alimentos | R91: Setor-091
A92: 91 | B92: Agricultura | C92: 669251 | D92: 577707 | E92: 0.01446363039 | F92: 6.6 | G92: 5.1 | H92: 4.6 | I92: 0.1 | J92: -192223 | K92: 11680 | Q92: Outras indústrias de produtos de metal | R92: Setor-092
A93: 92 | B93: Loja de artigos para saúde e cuidados pessoais | C93: 680617 | D93: 398075 | E93: 1.194868838 | F93: 1.9 | G93: 2.1 | H93: 1.2 | I93: 10.4 | J93: -100847 | K93: 40637 | Q93: Outras indústrias de tecidos | R93: Setor-093
A94: 93 | B94: Escola de ensino superior | C94: 687480 | D94: 476684 | E94: 0.4825093847 | F94: 1.8 | G94: 2.3 | H94: 2.3 | I94: 5.5 | J94: -229204 | K94: 6803 | Q94: Outras outras indústrias | R94: Setor-094
A95: 94 | B95: Escola de ensino superior | C95: 687480 | D95: 476684 | E95: 0.4825093847 | F95: 1.8 | G95: 2.3 | H95: 2.3 | I95: 5.5 | J95: -229204 | K95: 6803 | Q95: Outros serviços ambulatoriais de saúde | R95: Setor-095
A96: 95 | B96: Indústria de equipamentos de refrigeração | C96: 687717 | D96: 283367 | E96: -1.830716088 | F96: 1.1 | G96: 2 | H96: 1.6 | I96: -10.9 | J96: 85574 | K96: 276894 | Q96: Outros serviços de apoio | R96: Setor-096
A97: 96 | B97: Indústria de roupas de malha | C97: 691185 | D97: 294172 | E97: 1.399867432 | F97: 1.3 | G97: 2.2 | H97: 1.6 | I97: 10.9 | J97: -627 | K97: 95081 | Q97: Posto de gasolina | R97: Setor-097
A98: 97 | B98: Indústria de autopeças | C98: 692719 | D98: 286090 | E98: -0.104686655 | F98: 0.8 | G98: 0.8 | H98: 0.4 | I98: -2.5 | J98: 232480 | K98: 233816 | Q98: Seguradora | R98: Setor-098
A99: 98 | B99: Telecomunicações | C99: 702306 | D99: 277710 | E99: -0.002002231116 | F99: 0.8 | G99: 1.3 | H99: 1.2 | I99: -3.6 | J99: 170376 | K99: 333646 | Q99: Serv. de apoio a empr. e gerenc. de resíduos e remed. | R99: Setor-099
A100: 99 | B100: Impressão e atividades auxiliares | C100: 705965 | D100: 384092 | E100: 1.353704758 | F100: 1.1 | G100: 3.3 | H100: 2.4 | I100: 9.8 | J100: 96785 | K100: 188916 | Q100: Serviço de armazenamento | R100: Setor-100
A101: 100 | B101: Editoras de jornais, livros e base de dados | C101: 710788 | D101: 356490 | E101: 2.144775062 | F101: 1.5 | G101: 1.9 | H101: 0.8 | I101: 8.5 | J101: 134307 | K101: 137352 | Q101: Serviços ambulatoriais de saúde | R101: Setor-101
A102: 101 | B102: Construção de edifícios residenciais | C102: 713067 | D102: 377996 | E102: 0.2587350442 | F102: 2.3 | G102: 1.7 | H102: 1 | I102: 1.7 | J102: 105669 | K102: 141758 | Q102: Serviços de apoio a empresas | R102: Setor-102
A103: 102 | B103: Administração de empresas e empreendimentos | C103: 718697 | D103: 105307 | E103: -0.3940358368 | F103: 1 | G103: 4.1 | H103: 0.5 | I103: -0.5 | J103: 431099 | K103: 432060 | Q103: Serviços de informação | R103: Setor-103
A104: 103 | B104: Posto de gasolina | C104: 724746 | D104: 545227 | E104: 5.1065 | F104: 3 | G104: 3.1 | H104: 2.6 | I104: 22.5 | J104: -193138 | K104: 35173 | Q104: Serviços de processamento de dados | R104: Setor-104
A105: 104 | B105: Indústria de ferramentas de metal não motoriz. e cutelaria | C105: 729640 | D105: 440902 | E105: 1.145445668 | F105: 2 | G105: 1.8 | H105: 1.4 | I105: 2.9 | J105: -101178 | K105: 34603 | Q105: Tecelagens | R105: Setor-105
A106: 105 | B106: Locadora de imóveis | C106: 730350 | D106: 404360 | E106: 0.5542899839 | F106: 1.2 | G106: 7.4 | H106: 2.5 | I106: 6.7 | J106: 171121 | K106: 228074 | Q106: Telecomunicações | R106: Setor-106
A107: 106 | B107: Outras indústrias da recreação | C107: 737842 | D107: 635379 | E107: -6.909677251 | F107: 5.2 | G107: 10.4 | H107: 10.4 | I107: -28.3 | J107: -207557 | K107: 64437 | Q107: Transformação de aço em produtos de aço | R107: Setor-107
A108: 107 | B108: Forjarias e estamparias | C108: 743421 | D108: 257301 | E108: 2.434635704 | F108: 0.9 | G108: 2.3 | H108: 1.9 | I108: 5.7 | J108: 200719 | K108: 357292 | Q108: Transporte aéreo regular | R108: Setor-108
A109: 108 | B109: Construção de edifícios residenciais | C109: 749477 | D109: 390107 | E109: 0.6472563146 | F109: 2.1 | G109: 5.3 | H109: 3 | I109: 9.2 | J109: 36750 | K109: 104326 | Q109: Transporte ferroviário | R109: Setor-109
A110: 109 | B110: Indústria química básica | C110: 768529 | D110: 498983 | E110: 0.0002060693999 | F110: 2.1 | G110: 3.9 | H110: 2.7 | I110: 1.8 | J110: 16302 | K110: 21252 | Q110: TV a cabo | R110: Setor-110
A111: 110 | B111: Loja de departamentos | C111: 780138 | D111: 525035 | E111: 0.03771215143 | F111: 1.9 | G111: 1.5 | H111: 0.8 | I111: 1 | J111: 20758 | K111: 34866 | Q111: Vendas por correio ou meio eletrônico | R111: Setor-111
A112: 111 | B112: Indústria de produtos de papel e papelão | C112: 783296 | D112: 318477 | E112: 23.28799635 | F112: 0.4 | G112: 2.4 | H112: 2 | I112: 19.5 | J112: -26655 | K112: 10525
A113: 112 | B113: Concessionárias de outros veículos motorizados | C113: 784945 | D113: 29810 | E113: -0.7994227609 | F113: 0.7 | G113: 1.4 | H113: 1.2 | I113: -15.2 | J113: 302644 | K113: 581736
A114: 113 | B114: Outras indústrias de produtos de metal | C114: 816048 | D114: 361730 | E114: 0.4113281059 | F114: 1.4 | G114: 1.8 | H114: 1.1 | I114: 5.4 | J114: 48664 | K114: 181994
A115: 114 | B115: Locadora de imóveis | C115: 830346 | D115: 389955 | E115: 0.4016988705 | F115: 0.2 | G115: 0.2 | H115: 0.2 | I115: 2.4 | J115: 59291 | K115: 66212
A116: 115 | B116: Industria de máquinas agrícolas, de construção e mineração | C116: 841044 | D116: 227382 | E116: 7.008125 | F116: 1.1 | G116: 1.2 | H116: 1 | I116: 1.3 | J116: 24580 | K116: 111782
A117: 116 | B117: Indústria de ferragens | C117: 842803 | D117: 139711 | E117: -0.1704816354 | F117: 0.7 | G117: 0.6 | H117: 0.5 | I117: -1 | J117: 121593 | K117: 128297
A118: 117 | B118: Atividades auxiliares ao transporte | C118: 843664 | D118: 601476 | E118: 0.3065541453 | F118: 1.2 | G118: 3.8 | H118: 3.6 | I118: 3.1 | J118: 9587 | K118: 118248
A119: 118 | B119: Comércio atacadista de remédios | C119: 853079 | D119: 478676 | E119: 1.607664798 | F119: 2.2 | G119: 3.5 | H119: 2.4 | I119: 6.7 | J119: 95047 | K119: 146834
A120: 119 | B120: Indústria de produtos de borracha | C120: 862951 | D120: 428943 | E120: 0.8037617791 | F120: 1.4 | G120: 1.7 | H120: 1.2 | I120: 12.4 | J120: -5779 | K120: 84923
A121: 120 | B121: Telecomunicações | C121: 868040 | D121: 262979 | E121: -9.570738555 | F121: 0.8 | G121: 0.6 | H121: 0.5 | I121: -10.6 | J121: 300009 | K121: 317012
A122: 121 | B122: Telecomunicações | C122: 871466 | D122: 554115 | E122: -3.542349816e-05 | F122: 1.1 | G122: 0.6 | H122: 0.6 | I122: -4.4 | J122: 121694 | K122: 151163
A123: 122 | B123: Educacão | C123: 918244 | D123: 842887 | E123: 0.1689811776 | F123: 7.7 | G123: 11.4 | H123: 11.2 | I123: 4.2 | J123: -428991 | K123: 15078
A124: 123 | B124: Moinho de grãos | C124: 956815 | D124: 808716 | E124: 0.9163835711 | F124: 2.4 | G124: 2.8 | H124: 1.7 | I124: 4.3 | J124: 66641 | K124: 67217
A125: 124 | B125: Serviços ambulatoriais de saúde | C125: 963444 | D125: 462332 | E125: -1.19244271 | F125: 0.8 | G125: 0.9 | H125: 0.9 | I125: -8.6 | J125: -190825 | K125: 6074
A126: 125 | B126: Construção e empreendimentos imobiliarios | C126: 965253 | D126: 299602 | E126: -1.777604265 | F126: 1.4 | G126: 1.3 | H126: 0.6 | I126: -10.7 | J126: 338627 | K126: 367869
A127: 126 | B127: Fundição | C127: 969721 | D127: 870333 | E127: 1.030731763 | F127: 6.7 | G127: 7.9 | H127: 5.7 | I127: 9.4 | J127: -319613 | K127: 39810
A128: 127 | B128: Construção de edifícios residenciais | C128: 977796 | D128: 450510 | E128: -0.08934924871 | F128: 1.8 | G128: 3.1 | H128: 2.3 | I128: -0.7 | J128: 256900 | K128: 374986
A129: 128 | B129: Outras indústrias de alimentos | C129: 977820 | D129: 332168 | E129: -0.2202267696 | F129: 0.6 | G129: 0.8 | H129: 0.5 | I129: -12.9 | J129: 219999 | K129: 225955
A130: 129 | B130: Indústria química básica | C130: 1018828 | D130: 507957 | E130: 0.727636313 | F130: 1.1 | G130: 4 | H130: 3.7 | I130: 5.8 | J130: 161201 | K130: 433222
A131: 130 | B131: Serv. de apoio a empr. e gerenc. de resíduos e remed. | C131: 1034390 | D131: 370074 | E131: 1.683443865 | F131: 0.9 | G131: 1.3 | H131: 1.3 | I131: 9.6 | J131: -107832 | K131: 231336
A132: 131 | B132: Construção de edifícios residenciais | C132: 1035829 | D132: 224537 | E132: -0.2073992106 | F132: 1.3 | G132: 2.6 | H132: 1.5 | I132: -1.4 | J132: 365551 | K132: 408316
A133: 132 | B133: Atividades auxiliares ao transporte aquático | C133: 1054663 | D133: 739178 | E133: 0.2016176255 | F133: 0.6 | G133: 0.7 | H133: 0.6 | I133: 12.5 | J133: 81750 | K133: 149142
A134: 133 | B134: Serviços de informação | C134: 1059240 | D134: 809461 | E134: 0.8435532456 | F134: 3.5 | G134: 4.6 | H134: 4.6 | I134: 9.6 | J134: -496064 | K134: 60612
A135: 134 | B135: Construção de edifícios residenciais | C135: 1063516 | D135: 415309 | E135: 1.060231572 | F135: 1.6 | G135: 2.6 | H135: 1.3 | I135: 5.2 | J135: 243310 | K135: 319875
A136: 135 | B136: Indústria de máquinas indústriais | C136: 1076796 | D136: 330152 | E136: -1.923328209 | F136: 0.8 | G136: 0.6 | H136: 0.3 | I136: -3.7 | J136: 398784 | K136: 404097
A137: 136 | B137: Construção e empreendimentos imobiliarios | C137: 1084232 | D137: 916776 | E137: 1.134885556 | F137: 6.9 | G137: 6.8 | H137: 5 | I137: 15.1 | J137: -116845 | K137: 49855
A138: 137 | B138: Indústria de fibras e borracha sintéticas, resinas e filamentos | C138: 1119719 | D138: 396955 | E138: 0.5895424837 | F138: 0.9 | G138: 1.1 | H138: 0.8 | I138: 1.9 | J138: 98392 | K138: 124191
A139: 138 | B139: Indústria de computadores e periféricos | C139: 1127550 | D139: 484696 | E139: 3.351386147 | F139: 1.5 | G139: 2.1 | H139: 1.2 | I139: 3.5 | J139: 147659 | K139: 183315
A140: 139 | B140: Abatedouros | C140: 1127623 | D140: 475600 | E140: 0.001097754137 | F140: 1.1 | G140: 1.3 | H140: 0.6 | I140: 8.2 | J140: 253979 | K140: 381860
A141: 140 | B141: Tecelagens | C141: 1157215 | D141: 515672 | E141: -0.8405810146 | F141: 1.1 | G141: 1.7 | H141: 1.1 | I141: -1.4 | J141: 345070 | K141: 438462
A142: 141 | B142: Locadora de imóveis | C142: 1201853 | D142: 606397 | E142: 2.377660129 | F142: 0.8 | G142: 4.7 | H142: 4.7 | I142: 11.4 | J142: 139705 | K142: 560726
A143: 142 | B143: Editoras de software | C143: 1209103 | D143: 501471 | E143: 3.861544377 | F143: 0.8 | G143: 2 | H143: 2 | I143: 9.9 | J143: 259986 | K143: 490176
A144: 143 | B144: Indústria de produtos de madeira compensada e afins | C144: 1214165 | D144: 733233 | E144: 2.484826848 | F144: 0.6 | G144: 1.3 | H144: 0.9 | I144: 18.9 | J144: 94133 | K144: 96631
A145: 144 | B145: Indústria de produtos de metal | C145: 1221438 | D145: 680646 | E145: 0.2630572108 | F145: 1 | G145: 1.7 | H145: 1 | I145: 1 | J145: 146238 | K145: 267391
A146: 145 | B146: Indústria química | C146: 1242064 | D146: 545803 | E146: 0.0008782304062 | F146: 0.8 | G146: 1.1 | H146: 0.7 | I146: 8.8 | J146: 431088 | K146: 448872
A147: 146 | B147: Extração de minerais não metálicos | C147: 1253378 | D147: 848546 | E147: 0.002549613084 | F147: 2.1 | G147: 3.1 | H147: 2 | I147: 8.7 | J147: -148048 | K147: 111090
A148: 147 | B148: Indústria de produtos de plástico | C148: 1316950 | D148: 557896 | E148: 0.2134712307 | F148: 1.6 | G148: 2.2 | H148: 1.6 | I148: 4.4 | J148: 613 | K148: 80123
A149: 148 | B149: Construção de edifícios não residenciais | C149: 1338967 | D149: 628967 | E149: 0.6179722079 | F149: 1.8 | G149: 1.9 | H149: 1.3 | I149: 2.2 | J149: 297380 | K149: 345799
A150: 149 | B150: Indústria de bebidas | C150: 1352834 | D150: 872022 | E150: -0.00315466687 | F150: 1.4 | G150: 1.8 | H150: 1.3 | I150: -0.4 | J150: 3471 | K150: 235723
A151: 150 | B151: Indústria de fertilizantes e pesticidas | C151: 1384494 | D151: 219881 | E151: -7.579712698 | F151: 0.8 | G151: 0.6 | H151: 0.2 | I151: -28 | J151: 2448 | K151: 6989
A152: 151 | B152: Locadora de imóveis | C152: 1388358 | D152: 636663 | E152: 0.1846921479 | F152: 0.4 | G152: 0.5 | H152: 0.5 | I152: 1.2 | J152: 124126 | K152: 129380
A153: 152 | B153: Administração de empresas e empreendimentos | C153: 1393626 | D153: 491427 | E153: 0.1557804808 | F153: 1.3 | G153: 1.2 | H153: 1.2 | I153: 2.3 | J153: 40331 | K153: 245430
A154: 153 | B154: Indústria de autopeças | C154: 1438169 | D154: 542885 | E154: -0.2626912721 | F154: 1 | G154: 2 | H154: 1.5 | I154: -0.6 | J154: 287585 | K154: 499415
A155: 154 | B155: Forjarias e estamparias | C155: 1465854 | D155: 221969 | E155: -0.5626949109 | F155: 0.6 | G155: 2.3 | H155: 1.7 | I155: -1.8 | J155: 941907 | K155: 1084515
A156: 155 | B156: Telecomunicações | C156: 1469444 | D156: 955105 | E156: 0.0006051334566 | F156: 2.5 | G156: 2.4 | H156: 2.3 | I156: 14.8 | J156: -232872 | K156: 61837
A157: 156 | B157: Loja de roupas | C157: 1498013 | D157: 704117 | E157: 0.762616326 | F157: 1.5 | G157: 2.1 | H157: 1.8 | I157: 9.4 | J157: -106319 | K157: 249858
A158: 157 | B158: Geração, transmissão e distribuição de energia elétrica | C158: 1502844 | D158: 585391 | E158: 1.173084475 | F158: 1 | G158: 0.9 | H158: 0.9 | I158: 13.1 | J158: 333419 | K158: 413961
A159: 158 | B159: Indústria química | C159: 1505824 | D159: 185472 | E159: -0.002295836989 | F159: 0.7 | G159: 1 | H159: 0.6 | I159: -1.2 | J159: 564533 | K159: 587120
A160: 159 | B160: Construção e empreendimentos imobiliarios | C160: 1529749 | D160: 1003807 | E160: 1.346866086 | F160: 0.7 | G160: 3.3 | H160: 3.3 | I160: 5.7 | J160: 82104 | K160: 312620
A161: 160 | B161: Indústria de autopeças | C161: 1532277 | D161: 461181 | E161: 0.3778883454 | F161: 0.8 | G161: 1.2 | H161: 0.8 | I161: 1.2 | J161: 513724 | K161: 796209
A162: 161 | B162: Indústria de máquinas indústriais | C162: 1535332 | D162: 659511 | E162: 0.1671695121 | F162: 1.4 | G162: 2 | H162: 1.3 | I162: 0.8 | J162: 681868 | K162: 759782
A163: 162 | B163: Indústria de calçados | C163: 1540034 | D163: 449334 | E163: 1.362828571 | F163: 0.9 | G163: 1.5 | H163: 1.2 | I163: 6.2 | J163: 610491 | K163: 712129
A164: 163 | B164: Loja de roupas | C164: 1560587 | D164: 814652 | E164: 1.204530809 | F164: 1.6 | G164: 1.7 | H164: 1.3 | I164: 9.4 | J164: 18145 | K164: 315811
A165: 164 | B165: Agua, esgoto e outros sistemas | C165: 1567704 | D165: 1017186 | E165: 0.05897574584 | F165: 1.1 | G165: 1.1 | H165: 1 | I165: 2.6 | J165: 155625 | K165: 172429
A166: 165 | B166: Administração de empresas e empreendimentos | C166: 1568102 | D166: 1084421 | E166: -0.007760717516 | F166: 1.8 | G166: 2 | H166: 2 | I166: -0.2 | J166: -279634 | K166: 219521
A167: 166 | B167: Agricultura | C167: 1570027 | D167: 807039 | E167: -0.04622941088 | F167: 1.1 | G167: 2 | H167: 0.9 | I167: -0.3 | J167: 236998 | K167: 409796
A168: 167 | B168: Tecelagens | C168: 1616266 | D168: 327221 | E168: -29.27642675 | F168: 0.7 | G168: 1 | H168: 0.8 | I168: -22.9 | J168: 379122 | K168: 562859
A169: 168 | B169: Laboratório de exames médicos | C169: 1643766 | D169: 532798 | E169: 0.2504137414 | F169: 0.8 | G169: 2 | H169: 1.9 | I169: 3.5 | J169: 414837 | K169: 714190
A170: 169 | B170: Abatedouros | C170: 1651678 | D170: 489356 | E170: 0.07778841249 | F170: 0.9 | G170: 1.5 | H170: 0.9 | I170: 0.3 | J170: 562728 | K170: 660108
A171: 170 | B171: Construção e empreendimentos imobiliarios | C171: 1657940 | D171: 886713 | E171: 0.008953091949 | F171: 1.2 | G171: 1.7 | H171: 1.7 | I171: 0.2 | J171: 198872 | K171: 400378
A172: 171 | B172: Construção | C172: 1661995 | D172: 930419 | E172: 0.4441510433 | F172: 0.2 | G172: 1.2 | H172: 1 | I172: 1.7 | J172: 546944 | K172: 636317
A173: 172 | B173: Escola de ensino superior | C173: 1671952 | D173: 1048186 | E173: 0.08019384882 | F173: 0.7 | G173: 1.3 | H173: 1.3 | I173: 4.1 | J173: 117680 | K173: 223678
A174: 173 | B174: Telecomunicações | C174: 1693780 | D174: 1167005 | E174: 63.10919056 | F174: 1.6 | G174: 1.7 | H174: 1.6 | I174: 8.8 | J174: -141585 | K174: 58424
A175: 174 | B175: Indústria de calçados | C175: 1722273 | D175: 1000215 | E175: 12.03852337 | F175: 1.6 | G175: 2.3 | H175: 1.7 | I175: 12.2 | J175: 43624 | K175: 296838
A176: 175 | B176: Construção de edifícios não residenciais | C176: 1752067 | D176: 879464 | E176: 0.621323949 | F176: 2.2 | G176: 2.4 | H176: 1.5 | I176: 5.2 | J176: 396904 | K176: 465770
A177: 176 | B177: Transformação de aço em produtos de aço | C177: 1759326 | D177: 1109249 | E177: 0.04171445664 | F177: 1.6 | G177: 1.9 | H177: 1.5 | I177: 11.7 | J177: -266082 | K177: 306883
A178: 177 | B178: Geração, transmissão e distribuição de energia elétrica | C178: 1762544 | D178: 675479 | E178: 0.001570976554 | F178: 0.8 | G178: 1.5 | H178: 1.5 | I178: 4.7 | J178: 555387 | K178: 656278
A179: 178 | B179: Construção e empreendimentos imobiliarios | C179: 1763585 | D179: 502513 | E179: -0.03812489765 | F179: 1.4 | G179: 2.7 | H179: 2 | I179: -0.2 | J179: 590690 | K179: 799437
A180: 179 | B180: Indústria de calçados | C180: 1772140 | D180: 1400096 | E180: 1.19106 | F180: 4.3 | G180: 4.8 | H180: 4.4 | I180: 20.2 | J180: -733208 | K180: 194124
A181: 180 | B181: Geração, transmissão e distribuição de energia elétrica | C181: 1776907 | D181: 215758 | E181: 0.00364051323 | F181: 0.6 | G181: 0.7 | H181: 0.7 | I181: 10.9 | J181: 592745 | K181: 711233
A182: 181 | B182: Telecomunicações | C182: 1823251 | D182: 1355279 | E182: 0.006839759339 | F182: 2.3 | G182: 2.8 | H182: 2.7 | I182: 11 | J182: -369225 | K182: 108075
A183: 182 | B183: Construção de edifícios não residenciais | C183: 1831503 | D183: 586697 | E183: -0.7801671023 | F183: 1.4 | G183: 2 | H183: 1 | I183: -4.8 | J183: 275013 | K183: 414893
A184: 183 | B184: Telecomunicações | C184: 1834101 | D184: 1210575 | E184: 4.019608804 | F184: 1.7 | G184: 2.1 | H184: 2.1 | I184: 7.1 | J184: -236888 | K184: 142728
A185: 184 | B185: Construção e empreendimentos imobiliarios | C185: 1844207 | D185: 791468 | E185: -0.3041036411 | F185: 1.7 | G185: 1.9 | H185: 0.9 | I185: -2.7 | J185: 344723 | K185: 460352
A186: 185 | B186: Telecomunicações | C186: 1857747 | D186: 1352421 | E186: 0.01351375655 | F186: 2 | G186: 1.9 | H186: 1.8 | I186: 11.3 | J186: -365934 | K186: 27616
A187: 186 | B187: Telecomunicações | C187: 1872726 | D187: 1359774 | E187: 0.01343481913 | F187: 0.9 | G187: 1.2 | H187: 1.2 | I187: 7.4 | J187: 129879 | K187: 144655
A188: 187 | B188: Atividades auxiliares ao transporte rodoviário | C188: 1891734 | D188: 736745 | E188: -0.008105088377 | F188: 0.1 | G188: 0.3 | H188: 0.3 | I188: -0.1 | J188: 821375 | K188: 834455
A189: 188 | B189: Indústria de equipamentos de refrigeração | C189: 1894905 | D189: 828097 | E189: 0.08724634324 | F189: 1.1 | G189: 1 | H189: 0.5 | I189: 3.1 | J189: -20095 | K189: 14492
A190: 189 | B190: Distribuição de gas natural | C190: 1913918 | D190: 708401 | E190: 0.00427603492 | F190: 0.5 | G190: 0.7 | H190: 0.6 | I190: 11.6 | J190: 697919 | K190: 751205
A191: 190 | B191: Geração, transmissão e distribuição de energia elétrica | C191: 1967178 | D191: 528465 | E191: 0.3384114304 | F191: 0.3 | G191: 0.4 | H191: 0.4 | I191: 6.7 | J191: 449548 | K191: 498453
A192: 191 | B192: Atividades auxiliares ao transporte aquático | C192: 2019913 | D192: 1141284 | E192: 0.06316333626 | F192: 0.5 | G192: 0.8 | H192: 0.8 | I192: 2.1 | J192: 323056 | K192: 641219
A193: 192 | B193: Abatedouros | C193: 2053663 | D193: 529756 | E193: -1.49869221 | F193: 0.9 | G193: 1.9 | H193: 1.5 | I193: -5.6 | J193: 817432 | K193: 1224701
A194: 193 | B194: Indústria de roupas de tecido | C194: 2053905 | D194: 1439661 | E194: 3.271858974 | F194: 1.7 | G194: 1.8 | H194: 1.1 | I194: 9.9 | J194: 94292 | K194: 153853
A195: 194 | B195: Vendas por correio ou meio eletrônico | C195: 2056344 | D195: 260505 | E195: 0.4936212262 | F195: 0.9 | G195: 1.6 | H195: 1.1 | I195: 2.6 | J195: 945360 | K195: 1245342
A196: 195 | B196: Vendas por correio ou meio eletrônico | C196: 2056344 | D196: 260505 | E196: 0.4936212262 | F196: 0.9 | G196: 1.6 | H196: 1.1 | I196: 2.6 | J196: 945360 | K196: 1245342
A197: 196 | B197: Telecomunicações | C197: 2057744 | D197: 328134 | E197: -0.02741840594 | F197: 0.2 | G197: 0.4 | H197: 0.3 | I197: -19 | J197: -15202 | K197: 433
A198: 197 | B198: Telecomunicações | C198: 2074936 | D198: 1094103 | E198: 0.008506851268 | F198: 1.1 | G198: 1.2 | H198: 1.1 | I198: 8.8 | J198: -13548 | K198: 496
A199: 198 | B199: Loja de departamentos | C199: 2086803 | D199: 346231 | E199: -2.862072308 | F199: 1.1 | G199: 1.1 | H199: 0.7 | I199: -17 | J199: 225554 | K199: 307855
A200: 199 | B200: Construção e empreendimentos imobiliarios | C200: 2116802 | D200: 874944 | E200: 0.4905688473 | F200: 1.7 | G200: 3.8 | H200: 2.6 | I200: 4.1 | J200: 567271 | K200: 805632
... 151 more rows

Sheet Frequencia
E2: Distribuição de Frequência
E4: Suponha a seguinte base de dados com dados de clientes de uma concessionária.
E5: Tabela 1
A6: Ordem | B6: Rend | E6: ST | F6: R | G6: ND | H6: VE | I6: ST - Status: | J6: 1, se for inadimplente
C7: 1 | E7: 0 | F7: 2.5 | G7: 3 | H7: 1 | J7: 0, para adimplente
C8: 2 | E8: 1 | F8: 1.7 | G8: 3 | H8: 1 | I8: R -Renda: | J8: Renda mensal (média dos últimos 12 meses, em milhares de reais)
C9: 3 | E9: 0 | F9: 4 | G9: 2 | H9: 1 | I9: ND: | J9: Número de dependentes
C10: 4 | E10: 1 | F10: 2.3 | G10: 2 | H10: 1 | I10: VE: | J10: 1, Atividade Profissional com Vínculo empregatício:
C11: 5 | E11: 1 | F11: 3.7 | G11: 4 | H11: 0 | J11: 0, Sem vínculo empregatício
C12: 6 | E12: 0 | F12: 4.8 | G12: 1 | H12: 0
C13: 7 | E13: 1 | F13: 1.9 | G13: 3 | H13: 0 | I13: 2.2.3 a | J13: Distribuições de frequências para variáveis Métricas e Nominais | Q13: Renda
C14: 8 | E14: 0 | F14: 5.3 | G14: 2 | H14: 1 | I14: - | J14: Construa uma distribuição de frequência para cada variável. | Q14: Mínimo:
C15: 9 | E15: 1 | F15: 3.1 | G15: 4 | H15: 1 | I15: - | J15: Construa uma distribuição de frequência para a renda (R) de acordo com | Q15: Máximo:
C16: 10 | E16: 1 | F16: 1.9 | G16: 3 | H16: 1 | J16: o Status de inadimplente ou adimplente. | Q16: Número C
C17: 11 | E17: 1 | F17: 2.3 | G17: 4 | H17: 1 | Q17: Amplitude
C18: 12 | E18: 0 | F18: 3.6 | G18: 1 | H18: 0 | J18: Funções no Excel: | L18: CONT.SES | N18: CONT.VALORES
C19: 13 | E19: 0 | F19: 4.7 | G19: 2 | H19: 1 | L19: MÍNIMO | N19: CONCATENAR
C20: 14 | E20: 0 | F20: 5.8 | G20: 2 | H20: 0 | L20: MÁXIMO | N20: FREQÜÊNCIA | R20: Classes | S20: Lim Inf | T20: Lim Sup | U20: Freq | V20: Freq. Ac | W20: Ponto Méd | X20: Freq rel | Y20: Freq Ac rel
C21: 15 | E21: 0 | F21: 6 | G21: 4 | H21: 0 | J21: Exemplos: | K21: =COUNTIFS(F7:F98,CONCATENATE(">",2.5)) -> 51 | L21: =COUNTIFS(F7:F98,CONCATENATE(">",2.5),E7:E98,CONCATENATE("=",0)) -> 45
C22: 16 | E22: 0 | F22: 3.9 | G22: 3 | H22: 1 | J22: Nomes para intervalo: | L22: Caixa de nomes; ou então aba: Fórmulas - Gerenciador de Nomes | R22: 1
C23: 17 | E23: 1 | F23: 2.4 | G23: 4 | H23: 1 | R23: 2
C24: 18 | E24: 1 | F24: 1.7 | G24: 4 | H24: 1 | I24: 2.2.3 b | J24: Considere, que o mix de produtos Crystal seja definido de acordo com a tabela | R24: 3
C25: 19 | E25: 0 | F25: 3.7 | G25: 2 | H25: 0 | J25: abaixo. Escreva o mix Crystal em termos de frequência relativa e faça um gráfico | R25: 4
C26: 20 | E26: 0 | F26: 4.8 | G26: 1 | H26: 0 | J26: de Pareto
C27: 21 | E27: 0 | F27: 3.2 | G27: 2 | H27: 1 | M27: Quantidade | N27: Produto
C28: 22 | E28: 1 | F28: 2.7 | G28: 3 | H28: 1 | M28: 52 | N28: COPO 305
C29: 23 | E29: 1 | F29: 1.2 | G29: 3 | H29: 1 | M29: 70 | N29: PET 310 S/G
C30: 24 | E30: 0 | F30: 8.2 | G30: 5 | H30: 0 | M30: 22 | N30: PET 310 C/G
C31: 25 | E31: 1 | F31: 1.8 | G31: 1 | H31: 1 | M31: 401 | N31: PET 500 S/G
C32: 26 | E32: 1 | F32: 2.5 | G32: 1 | H32: 1 | M32: 225 | N32: PET 510 C/G
C33: 27 | E33: 1 | F33: 2.2 | G33: 3 | H33: 1 | M33: 51 | N33: PET 1,5 C/G
C34: 28 | E34: 0 | F34: 4 | G34: 1 | H34: 0 | M34: 176 | N34: PET 1,5 S/G
C35: 29 | E35: 0 | F35: 4.2 | G35: 1 | H35: 0 | M35: 2 | N35: 5 LITROS
C36: 30 | E36: 0 | F36: 3.7 | G36: 1 | H36: 0 | R36: Box Plot no Excel: | AB36: ST | AC36: R
C37: 31 | E37: 1 | F37: 2.4 | G37: 2 | H37: 1 | I37: 2.3 Extra | J37: Medidas de centro, variação e distribuição (posição relativa) | R37: A amostra da Tabela 1 foi reescrita de forma a separar os Inadimplentes dos Adimplentes (ao lado) | AB37: 0 | AC37: 2.5
C38: 32 | E38: 1 | F38: 1.6 | G38: 3 | H38: 1 | R38: Para construir o Box Plot os cinco números foram calculados: | AB38: 0 | AC38: 4
C39: 33 | E39: 1 | F39: 2 | G39: 1 | H39: 1 | I39: E1 | J39: Para a variável renda (R) apresentada na Tabela 1, determine: | AB39: 0 | AC39: 4.8
C40: 34 | E40: 1 | F40: 2.5 | G40: 3 | H40: 1 | J40: Média = | M40: Desvio padrão = | O40: Amplitude = | T40: ST=0 | U40: ST=1 | AB40: 0 | AC40: 5.3
C41: 35 | E41: 0 | F41: 3.8 | G41: 1 | H41: 0 | J41: Mediana = | M41: Variância = | O41: CV = | S41: Max | T41: =MAX($AC$37:$AC$87) -> 8.2 | U41: =MAX($AC$88:$AC$128) -> 4.5 | AB41: 0 | AC41: 3.6
C42: 36 | E42: 0 | F42: 4.3 | G42: 2 | H42: 0 | I42: E2 | J42: Para a variavel número de dependentes (ND), determine: | S42: Q3 | T42: =PERCENTILE($AC$37:$AC$87,0.75) -> 4.6 | U42: =PERCENTILE($AC$88:$AC$128,0.75) -> 2.4 | AB42: 0 | AC42: 4.7
C43: 37 | E43: 1 | F43: 2 | G43: 2 | H43: 1 | J43: Moda = | S43: Mediana | T43: =MEDIAN($AC$37:$AC$87) -> 3.8 | U43: =MEDIAN($AC$88:$AC$128) -> 2.1 | AB43: 0 | AC43: 5.8
C44: 38 | E44: 0 | F44: 5.2 | G44: 2 | H44: 0 | I44: E3 | J44: Para a variável renda (R), determine: | S44: Q1 | T44: =PERCENTILE($AC$37:$AC$87,0.25) -> 3 | U44: =PERCENTILE($AC$88:$AC$128,0.25) -> 1.7 | AB44: 0 | AC44: 6
C45: 39 | E45: 1 | F45: 2.4 | G45: 3 | H45: 0 | J45: 1o Quartil = | M45: Percentil 5 = | O45: Percentil 50 = | S45: Min | T45: =MIN($AC$37:$AC$87) -> 1.3 | U45: =MIN($AC$88:$AC$128) -> 1.2 | AB45: 0 | AC45: 3.9
C46: 40 | E46: 0 | F46: 2.6 | G46: 4 | H46: 0 | J46: 2o Quartil = | M46: Percentil 17 = | O46: Percentil 75 = | AB46: 0 | AC46: 3.7
C47: 41 | E47: 0 | F47: 1.3 | G47: 2 | H47: 1 | J47: 3o Quartil = | M47: Percentil 25 = | O47: Percentil 88 = | S47: Erro (+): Max - Q3 | T47: =T41-T42 -> 3.6 | U47: =U41-U42 -> 2.1 | AB47: 0 | AC47: 4.8
C48: 42 | E48: 0 | F48: 3.8 | G48: 1 | H48: 1 | S48: Q3-Mediana | T48: =T42-T43 -> 0.8 | U48: 0.3 | AB48: 0 | AC48: 3.2
C49: 43 | E49: 0 | F49: 4.5 | G49: 0 | H49: 1 | I49: E4 | J49: Construa um Box Plot para a variável renda (R). | S49: Mediana-Q1 | T49: =T43-T44 -> 0.8 | U49: 0.4 | AB49: 0 | AC49: 8.2
C50: 44 | E50: 0 | F50: 3 | G50: 0 | H50: 1 | S50: Q1 | T50: =T44 -> 3 | U50: =U44 -> 1.7 | AB50: 0 | AC50: 4
C51: 45 | E51: 1 | F51: 2.1 | G51: 2 | H51: 1 | I51: E5 | J51: Considere três amostras com um resumo dos cinco números dado abaixo. | S51: Erro (-): Q1-Min | T51: =T44-T45 -> 1.7 | U51: =U44-U45 -> 0.5 | AB51: 0 | AC51: 4.2
C52: 46 | E52: 1 | F52: 1.9 | G52: 2 | H52: 1 | J52: Construa um Box Plot para cada amostra no mesmo gráfico | AB52: 0 | AC52: 3.7
C53: 47 | E53: 0 | F53: 1.7 | G53: 4 | H53: 0 | R53: Box Plot com gráfico de Barras | AB53: 0 | AC53: 3.8
C54: 48 | E54: 1 | F54: 1.7 | G54: 2 | H54: 1 | J54: Estatística | K54: a | L54: b | M54: c | T54: Q1-Min | U54: Q1 | V54: Med-Q1 | W54: Q3-Med | X54: Max -Q3 | AB54: 0 | AC54: 4.3
C55: 49 | E55: 1 | F55: 1.3 | G55: 3 | H55: 1 | J55: Max | K55: 100 | L55: 110 | M55: 90 | S55: =T40 -> ST=0 | T55: =T51 -> 1.7 | U55: =T50 -> 3 | V55: =T49 -> 0.8 | W55: =T48 -> 0.8 | X55: =T47 -> 3.6 | AB55: 0 | AC55: 5.2
C56: 50 | E56: 0 | F56: 2.5 | G56: 1 | H56: 1 | J56: Q3 | K56: 70 | L56: 75 | M56: 57 | S56: =U40 -> ST=1 | T56: =U51 -> 0.5 | U56: =U50 -> 1.7 | V56: =U49 -> 0.4 | W56: =U48 -> 0.3 | X56: =U47 -> 2.1 | AB56: 0 | AC56: 2.6
C57: 51 | E57: 0 | F57: 3.5 | G57: 2 | H57: 0 | J57: Mediana | K57: 40 | L57: 45 | M57: 50 | AB57: 0 | AC57: 1.3
C58: 52 | E58: 0 | F58: 5.6 | G58: 3 | H58: 0 | J58: Q1 | K58: 20 | L58: 22 | M58: 30 | AB58: 0 | AC58: 3.8
C59: 53 | E59: 0 | F59: 3.8 | G59: 2 | H59: 0 | J59: Min | K59: 10 | L59: 15 | M59: 18 | AB59: 0 | AC59: 4.5
C60: 54 | E60: 0 | F60: 4 | G60: 0 | H60: 0 | AB60: 0 | AC60: 3
C61: 55 | E61: 1 | F61: 2.5 | G61: 1 | H61: 1 | AB61: 0 | AC61: 1.7
C62: 56 | E62: 1 | F62: 1.2 | G62: 2 | H62: 0 | I62: E6 | J62: Considere uma amostra de valores de Faturamento, ÁreaVendas e Funcionários | AB62: 0 | AC62: 2.5
C63: 57 | E63: 0 | F63: 3 | G63: 1 | H63: 0 | J63: de Supermercados no Brasil (planilha SupermercadosBrasil) | AB63: 0 | AC63: 3.5
C64: 58 | E64: 0 | F64: 3 | G64: 1 | H64: 0 | AB64: 0 | AC64: 5.6
C65: 59 | E65: 1 | F65: 2.1 | G65: 2 | H65: 1 | I65: E6a | J65: Para cada variável determine a média e mediana | AB65: 0 | AC65: 3.8
C66: 60 | E66: 0 | F66: 2.5 | G66: 1 | H66: 0 | AB66: 0 | AC66: 4
C67: 61 | E67: 0 | F67: 2.9 | G67: 1 | H67: 0 | J67: Faturamento | AB67: 0 | AC67: 3
C68: 62 | E68: 0 | F68: 4 | G68: 3 | H68: 0 | J68: ÁreaVendas | AB68: 0 | AC68: 3
C69: 63 | E69: 0 | F69: 3.2 | G69: 3 | H69: 0 | J69: Funcionários | AB69: 0 | AC69: 2.5
C70: 64 | E70: 1 | F70: 1.2 | G70: 2 | H70: 1 | AB70: 0 | AC70: 2.9
C71: 65 | E71: 0 | F71: 3.5 | G71: 3 | H71: 0 | I71: E6b | J71: Faça uma classificação dos Supermercados de acordo com o faturamento, | AB71: 0 | AC71: 4
C72: 66 | E72: 0 | F72: 4 | G72: 1 | H72: 0 | J72: estabeleça cinco faixas para faturamento, de forma que cada limite de | AB72: 0 | AC72: 3.2
C73: 67 | E73: 1 | F73: 2.3 | G73: 3 | H73: 1 | J73: faixa seja dado opelos percentis 20, 40, 60, 80 | AB73: 0 | AC73: 3.5
C74: 68 | E74: 0 | F74: 2.9 | G74: 4 | H74: 0 | AB74: 0 | AC74: 4
C75: 69 | E75: 1 | F75: 2.4 | G75: 2 | H75: 1 | I75: E6c | J75: Construa um Box Plot para a variável Funcionários | AB75: 0 | AC75: 2.9
C76: 70 | E76: 0 | F76: 5 | G76: 3 | H76: 0 | AB76: 0 | AC76: 5
C77: 71 | E77: 1 | F77: 2.2 | G77: 3 | H77: 0 | AB77: 0 | AC77: 3
C78: 72 | E78: 1 | F78: 1.3 | G78: 3 | H78: 1 | AB78: 0 | AC78: 3
C79: 73 | E79: 1 | F79: 1.7 | G79: 3 | H79: 1 | AB79: 0 | AC79: 3.5
C80: 74 | E80: 0 | F80: 3 | G80: 2 | H80: 0 | AB80: 0 | AC80: 5.8
C81: 75 | E81: 0 | F81: 3 | G81: 2 | H81: 1 | AB81: 0 | AC81: 4.8
C82: 76 | E82: 0 | F82: 3.5 | G82: 2 | H82: 1 | AB82: 0 | AC82: 3.2
C83: 77 | E83: 0 | F83: 5.8 | G83: 2 | H83: 1 | AB83: 0 | AC83: 4.2
C84: 78 | E84: 0 | F84: 4.8 | G84: 1 | H84: 0 | AB84: 0 | AC84: 2.6
C85: 79 | E85: 1 | F85: 2.3 | G85: 3 | H85: 1 | AB85: 0 | AC85: 6
C86: 80 | E86: 1 | F86: 2.6 | G86: 2 | H86: 1 | AB86: 0 | AC86: 4.3
C87: 81 | E87: 1 | F87: 1.8 | G87: 2 | H87: 1 | AB87: 0 | AC87: 2.4
C88: 82 | E88: 1 | F88: 2.9 | G88: 2 | H88: 1 | AB88: 1 | AC88: 1.7
C89: 83 | E89: 0 | F89: 3.2 | G89: 1 | H89: 0 | AB89: 1 | AC89: 2.3
C90: 84 | E90: 0 | F90: 4.2 | G90: 1 | H90: 0 | AB90: 1 | AC90: 3.7
C91: 85 | E91: 0 | F91: 2.6 | G91: 1 | H91: 0 | AB91: 1 | AC91: 1.9
C92: 86 | E92: 0 | F92: 6 | G92: 1 | H92: 0 | AB92: 1 | AC92: 3.1
C93: 87 | E93: 1 | F93: 4.5 | G93: 3 | H93: 1 | AB93: 1 | AC93: 1.9
C94: 88 | E94: 1 | F94: 1.3 | G94: 2 | H94: 1 | AB94: 1 | AC94: 2.3
C95: 89 | E95: 1 | F95: 2.4 | G95: 2 | H95: 1 | AB95: 1 | AC95: 2.4
C96: 90 | E96: 0 | F96: 4.3 | G96: 2 | H96: 0 | AB96: 1 | AC96: 1.7
E97: 1 | F97: 1.8 | G97: 0 | H97: 1 | AB97: 1 | AC97: 2.7
E98: 0 | F98: 2.4 | G98: 2 | H98: 0 | AB98: 1 | AC98: 1.2
AB99: 1 | AC99: 1.8
AB100: 1 | AC100: 2.5
AB101: 1 | AC101: 2.2
AB102: 1 | AC102: 2.4
AB103: 1 | AC103: 1.6
AB104: 1 | AC104: 2
AB105: 1 | AC105: 2.5
AB106: 1 | AC106: 2
AB107: 1 | AC107: 2.4
AB108: 1 | AC108: 2.1
AB109: 1 | AC109: 1.9
AB110: 1 | AC110: 1.7
AB111: 1 | AC111: 1.3
AB112: 1 | AC112: 2.5
AB113: 1 | AC113: 1.2
AB114: 1 | AC114: 2.1
AB115: 1 | AC115: 1.2
AB116: 1 | AC116: 2.3
AB117: 1 | AC117: 2.4
AB118: 1 | AC118: 2.2
AB119: 1 | AC119: 1.3
AB120: 1 | AC120: 1.7
AB121: 1 | AC121: 2.3
AB122: 1 | AC122: 2.6
AB123: 1 | AC123: 1.8
AB124: 1 | AC124: 2.9
AB125: 1 | AC125: 4.5
AB126: 1 | AC126: 1.3
AB127: 1 | AC127: 2.4
AB128: 1 | AC128: 1.8

Sheet Boxplot
A1: Resumo de Cinco Números | D1: Box-plot 1 | G1: Box-Plot 2 | I1: Resumo de Cinco Números
A2: Mínimo | B2: -50 | D2: Valor | E2: Gráfico | G2: Valor | H2: Gráfico | I2: Mínimo | J2: -10
A3: Primeiro quartil | B3: -10 | D3: =$B$2 -> -50 | E3: =E24-E23/2 -> 0.85 | G3: =$J$2 -> -10 | H3: =H24-H23/2 -> 2.85 | I3: Primeiro quartil | J3: 5
A4: Mediana | B4: 20 | D4: =$B$2 -> -50 | E4: =E24+E23/2 -> 1.15 | G4: =$J$2 -> -10 | H4: =H24+H23/2 -> 3.15 | I4: Mediana | J4: 28
A5: Terceiro quartil | B5: 25 | D5: =$B$3 -> -10 | E5: =E24-E22/2 -> 0.5 | G5: =$J$3 -> 5 | H5: =H24-H22/2 -> 2.5 | I5: Terceiro quartil | J5: 45
A6: Máximo | B6: 35 | D6: =$B$3 -> -10 | E6: =E24+E22/2 -> 1.5 | G6: =$J$3 -> 5 | H6: =H24+H22/2 -> 3.5 | I6: Máximo | J6: 60
D7: =$B$4 -> 20 | E7: =E5 -> 0.5 | G7: =$J$4 -> 28 | H7: =H5 -> 2.5
D8: =$B$4 -> 20 | E8: =E6 -> 1.5 | G8: =$J$4 -> 28 | H8: =H6 -> 3.5
D9: =$B$5 -> 25 | E9: =E5 -> 0.5 | G9: =$J$5 -> 45 | H9: =H5 -> 2.5
D10: =$B$5 -> 25 | E10: =E6 -> 1.5 | G10: =$J$5 -> 45 | H10: =H6 -> 3.5
D11: =$B$6 -> 35 | E11: =E3 -> 0.85 | G11: =$J$6 -> 60 | H11: =H3 -> 2.85
D12: =$B$6 -> 35 | E12: =E4 -> 1.15 | G12: =$J$6 -> 60 | H12: =H4 -> 3.15
D13: =$B$2 -> -50 | E13: =E24 -> 1 | G13: =$J$2 -> -10 | H13: =H24 -> 3
D14: =B3 -> -10 | E14: =E24 -> 1 | G14: =$J$3 -> 5 | H14: =H24 -> 3
D15: =B6 -> 35 | E15: =E24 -> 1 | G15: =J6 -> 60 | H15: =H24 -> 3
D16: =B5 -> 25 | E16: =E24 -> 1 | G16: =J5 -> 45 | H16: =H24 -> 3
D17: =$B$3 -> -10 | E17: =E24-E22/2 -> 0.5 | G17: =$J$3 -> 5 | H17: =H24-H22/2 -> 2.5
D18: =$B$5 -> 25 | E18: =E17 -> 0.5 | G18: =$J$5 -> 45 | H18: =H17 -> 2.5
D19: =$B$3 -> -10 | E19: =E24+E22/2 -> 1.5 | G19: =$J$3 -> 5 | H19: =H24+H22/2 -> 3.5
D20: =$B$5 -> 25 | E20: =E19 -> 1.5 | G20: =$J$5 -> 45 | H20: =H19 -> 3.5
E22: 1 | F22: Expessura caixa | H22: 1
E23: 0.3 | F23: Expessura extremos | H23: 0.3
E24: 1 | F24: Posição vertical | H24: 3
U26: Ativo Total (Empresas)
U28: Mínimo | V28: =QUARTILE(ativot,0) -> 
U29: Primeiro quartil | V29: =QUARTILE(ativot,1) -> 
U30: Mediana | V30: =QUARTILE(ativot,2) -> 
U31: Terceiro quartil | V31: =QUARTILE(ativot,3) -> 
U32: Máximo | V32: =QUARTILE(ativot,4) -> 

Sheet Simulacao
A1: 3.4.1 | B1: Utilização de uma tabela de frequências para simulação.
B3: Uma empresa de varejo, ramo farmacêutico, deseja simular a demanda diária de vitamina C.
B4: O histórico em 100 dias de observações da demanda é apresentado na tabela abaixo:
B6: Demanda diária | C6: Frequência
B7: (número de frascos) | C7: (número de dias) | E7: Freq Rel | G7: Freq. Ac | H7: Demanda
B8: 10 | C8: 30
B9: 11 | C9: 30
B10: 12 | C10: 40
C11: =SUM(C8:C10) -> 100
B12: Faça uma simulação da demanda diária em cinco dias:
E13: fx: ALEATÓRIOENTRE
B14: Dia | C14: Demanda | E14: fx: PROCV
B15: 1 | E15: fx: ALEATÓRIO
B16: 2
B17: 3
B18: 4
B19: 5
A22: 3.4.2 | B22: Utilização de distribuições específicas para simulação
B24: Um analista está realizando uma simulação para investigar o comportamento do lucro nos próximos 12 meses
B25: Para tanto ele precisa simular valores para vendas. Ele sabe que a variável vendas tem uma distribuição normal
B26: com média $ 10.000,00 e desvio padrão $ 800,00.
C28: Simulação: | D28: Mês | E28: Vendas | F28: Mês | G28: Vendas | H28: Mês | I28: Vendas
D29: 1 | F29: 5 | H29: 9
D30: 2 | F30: 6 | H30: 10
D31: 3 | F31: 7 | H31: 11
D32: 4 | F32: 8 | H32: 12
A34: 3.4.3 | B34: A indústria de confecções VP quer determinar o lucro provável de seu produto principal (calça jeans) para o
B35: próximo ano. Após pesquisas de mercado e análises financeiras fez a seguinte estimativa:
D36: Preço de venda (PV): | E36: 25 | F36: por unidade
D37: Custos e despesas fixos (CDF): | E37: 100000
B39: Não conhecidos:
B40: Custo de mão de obra (CMO), em R$/unidade | E40: Pode variar | F40: 8 | G40: 12 | H40: Sugestão: distribuição uniforme
B42: Custo da matéria-prima (CMP), Pode variar de acordo com o fornecedor (veja tabela) | I42: CMP | M42: R$/unidade
I43: Fornecedor | J43: Frequência | M43: Cobrado
B44: - Demanda, com base em dados históricos: | E44: média | F44: 13000 | G44: unidades | I44: A | J44: 0.1
E45: Desv. Pad. | F45: 3800 | G45: unidades | I45: B | J45: 0.2
I46: C | J46: 0.4
B47: CMO: Distribuição de probabilidade uniforme | I47: D | J47: 0.2
B48: CMP: Distribuição de probabilidade discreta | I48: E | J48: 0.1
B49: Demanda: Distribuição de probabilidade normal
D51: Modelo: Lucro = [ ( PV - CMO - CMP) x Demanda ] - CDF
D53: Simulação:
D54: CMP | E54: CMO | F54: Demanda | G54: Lucro
B57: Simular vários eventos (anos) e fazer uma análise estatística: | E57: Número de eventos simulados: Cells(57;8): | H57: 1000 | I57: (Macro: Ctrl + L) | P57: Simulações
E58: Ver resultados na coluna P, a partir de P58 | O58: Cells(58;16):
B59: Análise Estatística: Lucro anual de acordo com PV | H59: Preço Venda (R$/un.) = | I59: =E36 -> 25
B60: Preço de Venda (R$/un.) = | H60: Estatísticas para lucro simulado
B61: Máximo = | H61: Máximo =
B62: Q3 = | H62: Q3 =
B63: Mediana = | H63: Mediana =
B64: Q1 = | H64: Q1 =
B65: Mínimo = | H65: Mínimo =
B66: Desvio Padrão = | H66: Desvio Padrão =
B67: Média = | H67: Média =
A76: 3.4.4 | B76: As perdas de vendas de pneus por falta de estoque têm sido constantes. Abaixo segue uma tabela
B77: com frequências observadas para a demanda diária de pneus, Bem como uma tabela frequências
B78: observadas de prazos de entrega.
B80: Demanda de pneus
B81: Demanda diária | C81: Frequencia Observ.
B82: (quantidade de pneus) | C82: em 300 dias | G82: Demanda
B83: 21 | C83: 30
B84: 22 | C84: 60
B85: 23 | C85: 120
B86: 24 | C86: 60
B87: 25 | C87: 30
C88: =SUM(C83:C87) -> 300
B89: Prazo de entrega
B90: Prazo de entrega | C90: Frequencia Observ.
B91: (dias) | C91: em 210 dias | G91: Prazo (em dias)
B92: 1 | C92: 30
B93: 2 | C93: 60
B94: 3 | C94: 120
C95: =SUM(C92:C94) -> 210
B96: Elabore um modelo de simulação da administração de estoques para os próximos
B97: 30 dias, levando em conta os dados históricos levantados.
B99: Calcule o percentual de satisfação da demanda do produto
G100: Estatísticas | H100: Mínimo | I100: Q1 | J100: Mediana | K100: Q3 | L100: Máximo
B101: Considere um estoque inicial igual a | D101: 50 | E101: pneus | G101: Demanda
B102: o número de pedidos a receber igual a | D102: 0
C104: Serão realizados pedidos de | D104: 50 | E104: unidades se o estoque | H104: Dem At | K104: 1000 | L104: Simulações
C105: atingir | D105: 30 | E105: unidades. | L105: Demanda
B107: Sugestão: | F107: Tabela
A109: Dia | B109: Unidades Recebidas | C109: Estoque i | D109: Demanda | E109: Dem. At | F109: Estoque f | G109: Est. provision. | H109: Pedido | I109: Prazo Entreg | J109: Dia entrega
A110: 1
A111: 2
A112: 3
A113: 4
A114: 5
A115: 6
A116: 7
A117: 8
A118: 9
A119: 10
A120: 11
A121: 12
A122: 13
A123: 14
A124: 15
A125: 16
A126: 17
A127: 18
A128: 19
A129: 20
A130: 21
A131: 22
A132: 23
A133: 24
A134: 25
A135: 26
A136: 27
A137: 28
A138: 29
A139: 30
C140: Demanda total
C141: Demanda Atendida
C142: % Demanda Atendida

Sheet SupermercadosBrasil
A1: Nro | B1: Empresa | C1: Faturamento | D1: ÁreaVendas | E1: Funcionários
A2: 1 | B2: COMPANHIA BRASILEIRA DE DISTRIBUIÇÃO | C2: 16168968046 | D2: 1206254 | E2: 62803
A3: 2 | B3: CARREFOUR COM E IND LTDA | C3: 12546232768 | D3: 1013247 | E3: 48072
A4: 3 | B4: WAL-MART BRASIL LTDA | C4: 11731759991 | D4: 1170021 | E4: 50112
A5: 4 | B5: CIA ZAFFARI COMÉRCIO E INDÚSTRIA | C5: 1410185010 | D5: 113075 | E5: 7727
A6: 5 | B6: GBARBOSA COMERCIAL LTDA | C6: 1227023563 | D6: 66707 | E6: 6730
A7: 6 | B7: DMA DISTRIBUIDORA S/A - EPA | C7: 1212276038 | D7: 95998 | E7: 7000
A8: 7 | B8: IRMÃOS BRETAS, FILHOS E CIA LTDA. | C8: 1144635735 | D8: 101615 | E8: 6655
A9: 8 | B9: COOP - COOPERATIVA DE CONSUMO | C9: 1076619724 | D9: 62990 | E9: 3682
A10: 9 | B10: A ANGELONI & CIA LTDA | C10: 992810531 | D10: 64812 | E10: 6065
A11: 10 | B11: PREZUNIC COMERCIAL LTDA | C11: 781709800 | D11: 34175 | E11: 12000
A12: 11 | B12: Y. YAMADA S.A. | C12: 767725801 | D12: 64627 | E12: 4668
A13: 12 | B13: CONDOR SUPER CENTER LTDA | C13: 765895534 | D13: 62057 | E13: 3820
A14: 13 | B14: SONDA SUPERMERCADOS EXP E IMP LTDA | C14: 752195264 | D14: 42171 | E14: 3700
A15: 14 | B15: LIDER SUPERMERCADOS E MAGAZINE LTDA | C15: 733881395 | D15: 38804 | E15: 5564
A16: 15 | B16: EMPRESA BAIANA DE ALIMENTOS S.A. | C16: 496123154 | D16: 64713 | E16: 3660
A17: 16 | B17: SAVEGNAGO SUPERMERCADOS LTDA | C17: 424125485 | D17: 23347 | E17: 1694
A18: 17 | B18: SUPERMERCADO GIMENES LTDA | C18: 423298693 | D18: 34899 | E18: 2219
A19: 18 | B19: CARVALHO & FERNANDES LTDA | C19: 405905643 | D19: 35914 | E19: 2873
A20: 19 | B20: SUPERMERCADO BAHAMAS LTDA | C20: 397979384 | D20: 24413 | E20: 1993
A21: 20 | B21: D'AVÓ SUPERMERCADOS LTDA | C21: 394149650 | D21: 34000 | E21: 1669
A22: 21 | B22: GIASSI & CIA LTDA. | C22: 386710656 | D22: 28076 | E22: 1838
A23: 22 | B23: SUPERMERCADO NORDESTÃO LTDA | C23: 347220472 | D23: 14701 | E23: 1367
A24: 23 | B24: REALMAR DISTRIBUIDORA LTDA | C24: 278755563 | D24: 20585 | E24: 2085
A25: 24 | B25: SUPERMERCADO MODELO LTDA | C25: 271168108 | D25: 26854 | E25: 2194
A26: 25 | B26: AM/PM COMESTÍVEIS LTDA | C26: 269821182 | D26: 24684 | E26: 2710
A27: 26 | B27: SUPERMERCADOS IRMÃOS LOPES LTDA | C27: 248585812 | D27: 18443 | E27: 1281
A28: 27 | B28: NAZARÉ COMERCIAL DE ALIMENTOS E MAGAZINE | C28: 231183502 | D28: 14000 | E28: 1295
A29: 28 | B29: FORMOSA SUPERMERCADOS E MAGAZINE LTDA | C29: 223706399 | D29: 12000 | E29: 1388
A30: 29 | B30: PETROBRAS DISTRIBUIDORA S/A | C30: 218337838 | D30: 48988 | E30: 3700
A31: 30 | B31: COMERCIAL DELTA PONTO CERTO LTDA. | C31: 205183214 | D31: 16899 | E31: 1604

Sheet OxfordCereals
A2: Caso: Oxford Cereals
A4: caixa | B4: gramas
A5: 1 | B5: 322.7
A6: 2 | B6: 370.4
A7: 3 | B7: 355
A8: 4 | B8: 381.1
A9: 5 | B9: 371.2
A10: 6 | B10: 367.2
A11: 7 | B11: 362.2
A12: 8 | B12: 386.9
A13: 9 | B13: 381.9
A14: 10 | B14: 378
A15: 11 | B15: 353.9
A16: 12 | B16: 384.1
A17: 13 | B17: 376.3
A18: 14 | B18: 368.5
A19: 15 | B19: 360.3
A20: 16 | B20: 335.4
A21: 17 | B21: 348
A22: 18 | B22: 362.8
A23: 19 | B23: 352.3
A24: 20 | B24: 353.4
A25: 21 | B25: 402.1
A26: 22 | B26: 366
A27: 23 | B27: 350.3
A28: 24 | B28: 329
A29: 25 | B29: 332.5
A30: 26 | B30: 363.3
A31: 27 | B31: 369.2
A32: 28 | B32: 370.7
A33: 29 | B33: 371.9
A34: 30 | B34: 372.1
A35: 31 | B35: 353.5
A36: 32 | B36: 374.3
A37: 33 | B37: 366.1
A38: 34 | B38: 362.3
A39: 35 | B39: 344.3
A40: 36 | B40: 372.1
A41: 37 | B41: 379.8
A42: 38 | B42: 380.8
A43: 39 | B43: 368.7
A44: 40 | B44: 360.2
A45: 41 | B45: 385.3
A46: 42 | B46: 377
A47: 43 | B47: 393.6
A48: 44 | B48: 389.7
A49: 45 | B49: 369.5
A50: 46 | B50: 352
A51: 47 | B51: 366.6
A52: 48 | B52: 357.2
A53: 49 | B53: 384.4
A54: 50 | B54: 355.9
A55: 51 | B55: 379.6
A56: 52 | B56: 383.1
A57: 53 | B57: 408.9
A58: 54 | B58: 419.4
A59: 55 | B59: 372.2
A60: 56 | B60: 363.9
A61: 57 | B61: 358.6
A62: 58 | B62: 360
A63: 59 | B63: 382.9
A64: 60 | B64: 338.3
A65: 61 | B65: 363.3
A66: 62 | B66: 348.1
A67: 63 | B67: 374.9
A68: 64 | B68: 344.2
A69: 65 | B69: 332.4
A70: 66 | B70: 389
A71: 67 | B71: 359.1
A72: 68 | B72: 358.9
A73: 69 | B73: 371.3
A74: 70 | B74: 375.5
A75: 71 | B75: 382.8
A76: 72 | B76: 377
A77: 73 | B77: 367.4
A78: 74 | B78: 355.7
A79: 75 | B79: 377.8
A80: 76 | B80: 366.8
A81: 77 | B81: 366.4
A82: 78 | B82: 392.6
A83: 79 | B83: 377.9
A84: 80 | B84: 349.5
A85: 81 | B85: 371.8
A86: 82 | B86: 363.6
A87: 83 | B87: 377.4
A88: 84 | B88: 372.1
A89: 85 | B89: 370.7
A90: 86 | B90: 362.7
A91: 87 | B91: 352.6
A92: 88 | B92: 356.7
A93: 89 | B93: 365.2
A94: 90 | B94: 380.8
A95: 91 | B95: 368.6
A96: 92 | B96: 402.9
A97: 93 | B97: 378.2
A98: 94 | B98: 362
A99: 95 | B99: 353.6
A100: 96 | B100: 374.1
A101: 97 | B101: 367.7
A102: 98 | B102: 345.1
A103: 99 | B103: 375.9
A104: 100 | B104: 368.2
A105: 101 | B105: 352.3
A106: 102 | B106: 392.6
A107: 103 | B107: 351.9
A108: 104 | B108: 387.7
A109: 105 | B109: 375.6
A110: 106 | B110: 360.3
A111: 107 | B111: 365.2
A112: 108 | B112: 345.9
A113: 109 | B113: 395.5
A114: 110 | B114: 375.1
A115: 111 | B115: 352.7
A116: 112 | B116: 385.4
A117: 113 | B117: 381.8
A118: 114 | B118: 371.1
A119: 115 | B119: 354.9
A120: 116 | B120: 354.1
A121: 117 | B121: 381.6
A122: 118 | B122: 367.1
A123: 119 | B123: 352.8
A124: 120 | B124: 368.1
A125: 121 | B125: 377.3
A126: 122 | B126: 364.4
A127: 123 | B127: 359.2
A128: 124 | B128: 370.6
A129: 125 | B129: 375.1
A130: 126 | B130: 378.4
A131: 127 | B131: 376.8
A132: 128 | B132: 367.1
A133: 129 | B133: 350.6
A134: 130 | B134: 362.9
A135: 131 | B135: 382.6
A136: 132 | B136: 340.8
A137: 133 | B137: 368.6
A138: 134 | B138: 374.3
A139: 135 | B139: 365.2
A140: 136 | B140: 349.2
A141: 137 | B141: 392.6
A142: 138 | B142: 389.2
A143: 139 | B143: 369.9
A144: 140 | B144: 362.1
A145: 141 | B145: 366.9
A146: 142 | B146: 363.2
A147: 143 | B147: 383.4
A148: 144 | B148: 360.9
A149: 145 | B149: 366.3
A150: 146 | B150: 358.9
A151: 147 | B151: 399.8
A152: 148 | B152: 360
A153: 149 | B153: 377.6
A154: 150 | B154: 370.5
A155: 151 | B155: 355.2
A156: 152 | B156: 378.7
A157: 153 | B157: 382.9
A158: 154 | B158: 364.1
A159: 155 | B159: 368
A160: 156 | B160: 386.4
A161: 157 | B161: 339.2
A162: 158 | B162: 406.3
A163: 159 | B163: 370.7
A164: 160 | B164: 343.4
A165: 161 | B165: 369.2
A166: 162 | B166: 355.1
A167: 163 | B167: 383.1
A168: 164 | B168: 372.8
A169: 165 | B169: 374.1
A170: 166 | B170: 355.3
A171: 167 | B171: 383.1
A172: 168 | B172: 350.6
A173: 169 | B173: 349.6
A174: 170 | B174: 377.8
A175: 171 | B175: 360.7
A176: 172 | B176: 391.5
A177: 173 | B177: 359.5
A178: 174 | B178: 361.7
A179: 175 | B179: 351.8
A180: 176 | B180: 377.3
A181: 177 | B181: 382.6
A182: 178 | B182: 376.2
A183: 179 | B183: 371.8
A184: 180 | B184: 378
A185: 181 | B185: 358
A186: 182 | B186: 352.1
A187: 183 | B187: 323.8
A188: 184 | B188: 344.8
A189: 185 | B189: 381
A190: 186 | B190: 383.7
A191: 187 | B191: 355.9
A192: 188 | B192: 350
A193: 189 | B193: 370
A194: 190 | B194: 335.1
A195: 191 | B195: 349.9
A196: 192 | B196: 366.3
A197: 193 | B197: 378.2
A198: 194 | B198: 375.3
A199: 195 | B199: 369.6
A200: 196 | B200: 346.3
A201: 197 | B201: 365.6
A202: 198 | B202: 355.5
... 2802 more rows

Sheet AmostragemSR
A1: Amostragem sem Reposição | D1: Ctrl + t
A3: Grade: | B3: Inferior | C3: Superior | D3: N
B4: 1 | C4: 40 | D4: =C4-B4+1 -> 40
A6: Amostra: | B6: Tamanho | D6: Sorteio | F6: Amostra
B7: 20 | D7: =RANDBETWEEN(B4,C4) -> 23

Sheet AnaliseMultivariada
B2: Correlação
A4: 5.2.1 | B4: r =
A8: 5.2.2 | B8: Considere a Omni Power
B10: Vendas | C10: Preço | D10: Promoção | F10: Matriz de correlação
B11: 4141 | C11: 59 | D11: 200
B12: 3842 | C12: 59 | D12: 200 | G12: Vendas | H12: Preço | I12: promoção
B13: 3056 | C13: 59 | D13: 200 | F13: Vendas
B14: 3519 | C14: 59 | D14: 200 | F14: Preço
B15: 4226 | C15: 59 | D15: 400 | F15: Promoção
B16: 4630 | C16: 59 | D16: 400
B17: 3507 | C17: 59 | D17: 400 | G17: Vendas | H17: Preço | I17: Promoção
B18: 3754 | C18: 59 | D18: 400 | F18: Vendas
B19: 5000 | C19: 59 | D19: 600 | F19: Preço
B20: 5120 | C20: 59 | D20: 600 | F20: Promoção
B21: 4011 | C21: 59 | D21: 600
B22: 5015 | C22: 59 | D22: 600
B23: 1916 | C23: 79 | D23: 200
B24: 675 | C24: 79 | D24: 200
B25: 3636 | C25: 79 | D25: 200
B26: 3224 | C26: 79 | D26: 200
B27: 2295 | C27: 79 | D27: 400
B28: 2730 | C28: 79 | D28: 400
B29: 2618 | C29: 79 | D29: 400
B30: 4421 | C30: 79 | D30: 400
B31: 4113 | C31: 79 | D31: 600
B32: 3746 | C32: 79 | D32: 600
B33: 3532 | C33: 79 | D33: 600
B34: 3825 | C34: 79 | D34: 600
B35: 1096 | C35: 99 | D35: 200
B36: 761 | C36: 99 | D36: 200
B37: 2088 | C37: 99 | D37: 200
B38: 820 | C38: 99 | D38: 200
B39: 2114 | C39: 99 | D39: 400
B40: 1882 | C40: 99 | D40: 400
B41: 2159 | C41: 99 | D41: 400
B42: 1602 | C42: 99 | D42: 400
B43: 3354 | C43: 99 | D43: 600
B44: 2927 | C44: 99 | D44: 600
A47: 5.3.1 | B47: Portfólio | N47: Mais resultados na coluna AF | AF47: Ret | AG47: Var | AI47: pa | AJ47: pb | AK47: pc | AL47: pd
AF48: 0.11 | AG48: 0.03700075182 | AI48: 0.06026644203 | AJ48: 0 | AK48: 0.1174401008 | AL48: 0.8222934572
B49: Trimestre | C49: RA | D49: RB | E49: RC | F49: RD | H49: R
B50: 1 | C50: -0.3993 | D50: -0.5363 | E50: 0.2527 | F50: -0.2176
B51: 2 | C51: 0.2852 | D51: 0.472 | E51: -0.0446 | F51: 0.2475 | H51: P | N51: =SUM(I51:K51) -> 0
B52: 3 | C52: 0.0352 | D52: -0.2399 | E52: 0.0084 | F52: -0.0554
B53: 4 | C53: -0.0863 | D53: 0.3272 | E53: 0.1515 | F53: 0.1408 | I53: PT
B54: 5 | C54: 0.0988 | D54: 0.4468 | E54: 0.0801 | F54: 0.2186
B55: 6 | C55: 0.2068 | D55: 0.0871 | E55: 0.069 | F55: 0.131
B56: 7 | C56: 0.2184 | D56: -0.032 | E56: 0.3187 | F56: 0.1784
B57: 8 | C57: 0.0948 | D57: 0.2911 | E57: 0.6426 | F57: 0.3528
B58: 9 | C58: -0.0574 | D58: -0.1441 | E58: -0.0515 | F58: -0.0743 | J58: Ret Esp
B59: 10 | C59: 0.3892 | D59: 0.6602 | E59: 0.6192 | F59: 0.5662 | H59: Retorno | J59: 0.1 | P59: Covariâncias
B60: 11 | C60: 0.0788 | D60: -0.2834 | E60: -0.1737 | F60: -0.1161 | H60: Variância | K60: A | L60: B | M60: C | N60: D | Q60: RA | R60: RB | S60: RC | T60: RD
B61: 12 | C61: -0.2702 | D61: -0.3957 | E61: -0.1215 | F61: -0.2525 | J61: A | P61: RA
B62: 13 | C62: 0.3845 | D62: 0.1928 | E62: -0.0188 | F62: 0.1962 | J62: B | P62: RB
B63: 14 | C63: 0.2549 | D63: 0.4497 | E63: 0.003 | F63: 0.2459 | J63: C | P63: RC
B64: 15 | C64: 0.0099 | D64: 0.01 | E64: -0.269 | F64: -0.073 | J64: D | P64: RD
B65: 16 | C65: 0.3169 | D65: 0.0349 | E65: 0.4325 | F65: 0.2714 | P65: Correlação
B66: 17 | C66: 0.2495 | D66: 0.4279 | E66: -0.0434 | F66: 0.2213 | K66: Cov . Pt | Q66: RA | R66: RB | S66: RC | T66: RD
B67: 18 | C67: 0.05 | D67: 0.1263 | E67: -0.0476 | F67: 0.0529 | P67: RA
B68: 19 | C68: -0.1209 | D68: -0.0209 | E68: 0.0314 | F68: -0.0268 | P68: RB
B69: 20 | C69: 0.2038 | D69: 0.3443 | E69: 0.1479 | F69: 0.242 | P69: RC
P70: RD
A72: 5.3.2
C75: Área (em | D75: Vendas
C76: pés quadrado) | D76: Anuais $ Mi | V76: RESUMO DOS RESULTADOS
A77: 5.4.1
B78: Loja | C78: Área | D78: Vendas
B79: 1 | C79: 1.7 | D79: 3.7
B80: 2 | C80: 1.6 | D80: 3.9 | F80: Vendas =
B81: 3 | C81: 2.8 | D81: 6.7
B82: 4 | C82: 5.6 | D82: 9.5 | F82: Vendas = b0 + b1 * Área
B83: 5 | C83: 1.3 | D83: 3.4
B84: 6 | C84: 2.2 | D84: 5.6 | F84: b0 =
B85: 7 | C85: 1.3 | D85: 3.7 | F85: b1 =
B86: 8 | C86: 1.1 | D86: 2.7
B87: 9 | C87: 3.2 | D87: 5.5 | F87: r =
B88: 10 | C88: 1.5 | D88: 2.9
B89: 11 | C89: 5.2 | D89: 10.7
B90: 12 | C90: 4.6 | D90: 7.6
B91: 13 | C91: 5.8 | D91: 11.8
B92: 14 | C92: 3 | D92: 4.1
A95: 5.4.2 | B95: Anos | C95: Quantidade | D95: Peço
B96: 1 | C96: 2 | D96: 4
B97: 2 | C97: 1 | D97: 6
B98: 3 | C98: 3 | D98: 3
B99: 4 | C99: 1 | D99: 5
B100: 5 | C100: 4 | D100: 1
B101: 6 | C101: 3 | D101: 2
U102: R2
T103: linear | U103: 0.9456
A104: 5.4.3 | B104: Não linear | T104: parábola | U104: 0.967
C105: Anos | D105: Propaganda | E105: Vendas | T105: x^6 | U105: 0.9722
T106: potência | U106: 0.9786
C108: 1 | D108: 7 | E108: 7
C109: 2 | D109: 6 | E109: 5
C110: 3 | D110: 4.5 | E110: 3
C111: 4 | D111: 3 | E111: 1.5
C112: 5 | D112: 2 | E112: 1
C113: 6 | D113: 1 | E113: 0.5
C114: 7 | D114: 8 | E114: 7
C115: 8 | D115: 8 | E115: 9
A117: 5.4.4 | B117: Indicadores financeiros
C119: RENTPL | D119: ALOPER | E119: ALFIN | F119: LUPRE | G119: MARVEN
B120: RENTPL
B121: ALOPER
B122: ALFIN
B123: LUPRE
B124: MARVEN
B125: RENTAT
B128: RESUMO DOS RESULTADOS

Sheet Indicadores
A1: Número | B1: Vendas | C1: Plajust | D1: Llajust | E1: Ativoaj | F1: RENTPL | G1: ALOPER | H1: ALFIN | I1: LUPRE | J1: MARVEN | K1: RENTAT
A2: 1 | B2: 33311.5 | C2: 14176.4 | D2: 2660.5 | E2: 36658.5 | F2: 0.19 | G2: 2.59 | H2: 0.91 | I2: 1 | J2: 0.08 | K2: 0.07
A3: 2 | B3: 5329.8 | C3: 478.6 | D3: -1350 | E3: 3901.3 | F3: -2.82 | G3: 8.15 | H3: 1.37 | I3: 0 | J3: -0.25 | K3: -0.35
A4: 3 | B4: 4310.4 | C4: 4650.4 | D4: 3180 | E4: 7819.4 | F4: 0.68 | G4: 1.68 | H4: 0.55 | I4: 1 | J4: 0.74 | K4: 0.41
A5: 4 | B5: 4214.1 | C5: 333.4 | D5: -52.7 | E5: 757.9 | F5: -0.16 | G5: 2.27 | H5: 5.56 | I5: 0 | J5: -0.01 | K5: -0.07
A6: 5 | B6: 4096.8 | C6: 1239.2 | D6: -1290 | E6: 2575.7 | F6: -1.04 | G6: 2.08 | H6: 1.59 | I6: 0 | J6: -0.31 | K6: -0.5
A7: 6 | B7: 3975.9 | C7: 3132.2 | D7: 380.7 | E7: 6294.9 | F7: 0.12 | G7: 2.01 | H7: 0.63 | I7: 1 | J7: 0.1 | K7: 0.06
A8: 7 | B8: 3837.5 | C8: 1496.2 | D8: 109.5 | E8: 3508.1 | F8: 0.07 | G8: 2.34 | H8: 1.09 | I8: 1 | J8: 0.03 | K8: 0.03
A9: 8 | B9: 3158.1 | C9: 577.2 | D9: -121.6 | E9: 2234.5 | F9: -0.21 | G9: 3.87 | H9: 1.41 | I9: 0 | J9: -0.04 | K9: -0.05
A10: 9 | B10: 3121.4 | C10: 727.4 | D10: -57.3 | E10: 1512.1 | F10: -0.08 | G10: 2.08 | H10: 2.06 | I10: 0 | J10: -0.02 | K10: -0.04
A11: 10 | B11: 2616.5 | C11: 2474.3 | D11: -280.4 | E11: 5425.8 | F11: -0.11 | G11: 2.19 | H11: 0.48 | I11: 0 | J11: -0.11 | K11: -0.05
A12: 11 | B12: 2375.9 | C12: 555.3 | D12: 227.3 | E12: 1000.4 | F12: 0.41 | G12: 1.8 | H12: 2.37 | I12: 1 | J12: 0.1 | K12: 0.23
A13: 12 | B13: 2172.7 | C13: 773.3 | D13: 183.3 | E13: 1618.8 | F13: 0.24 | G13: 2.09 | H13: 1.34 | I13: 1 | J13: 0.08 | K13: 0.11
A14: 13 | B14: 2160.4 | C14: 2148.4 | D14: 215.5 | E14: 6668.3 | F14: 0.1 | G14: 3.1 | H14: 0.32 | I14: 1 | J14: 0.1 | K14: 0.03
A15: 14 | B15: 2078.9 | C15: 1248.2 | D15: 144.3 | E15: 2856.7 | F15: 0.12 | G15: 2.29 | H15: 0.73 | I15: 1 | J15: 0.07 | K15: 0.05
A16: 15 | B16: 2003.6 | C16: 606.5 | D16: -228.3 | E16: 4338.7 | F16: -0.38 | G16: 7.15 | H16: 0.46 | I16: 0 | J16: -0.11 | K16: -0.05
A17: 16 | B17: 1891.8 | C17: 1303.5 | D17: -80.4 | E17: 3512.9 | F17: -0.06 | G17: 2.69 | H17: 0.54 | I17: 0 | J17: -0.04 | K17: -0.02
A18: 17 | B18: 1886.1 | C18: 1930 | D18: 37.9 | E18: 825.5 | F18: 0.02 | G18: 0.43 | H18: 2.28 | I18: 1 | J18: 0.02 | K18: 0.05
A19: 18 | B19: 1793.3 | C19: 8150 | D19: -344.1 | E19: 3897.9 | F19: -0.04 | G19: 0.48 | H19: 0.46 | I19: 0 | J19: -0.19 | K19: -0.09
A20: 19 | B20: 1760.4 | C20: 488.7 | D20: 22.7 | E20: 1654.6 | F20: 0.05 | G20: 3.39 | H20: 1.06 | I20: 1 | J20: 0.01 | K20: 0.01
A21: 20 | B21: 1752.1 | C21: 1376.2 | D21: 102.5 | E21: 2485.2 | F21: 0.07 | G21: 1.81 | H21: 0.71 | I21: 1 | J21: 0.06 | K21: 0.04
A22: 21 | B22: 1601.4 | C22: 5769.4 | D22: 28.9 | E22: 10304.2 | F22: 0.01 | G22: 1.79 | H22: 0.16 | I22: 1 | J22: 0.02 | K22: 0
A23: 22 | B23: 1551.2 | C23: 1448.7 | D23: -165.4 | E23: 3483.5 | F23: -0.11 | G23: 2.4 | H23: 0.45 | I23: 0 | J23: -0.11 | K23: -0.05
A24: 23 | B24: 1550.5 | C24: 164.9 | D24: 32.4 | E24: 1194.9 | F24: 0.2 | G24: 7.25 | H24: 1.3 | I24: 1 | J24: 0.02 | K24: 0.03
A25: 24 | B25: 1465.8 | C25: 592.6 | D25: 32.8 | E25: 1586.9 | F25: 0.06 | G25: 2.68 | H25: 0.92 | I25: 1 | J25: 0.02 | K25: 0.02
A26: 25 | B26: 1355.1 | C26: 320.7 | D26: -99.7 | E26: 1096.5 | F26: -0.31 | G26: 3.42 | H26: 1.24 | I26: 0 | J26: -0.07 | K26: -0.09
A27: 26 | B27: 1336.2 | C27: 295.9 | D27: 24.9 | E27: 1127.5 | F27: 0.08 | G27: 3.81 | H27: 1.19 | I27: 1 | J27: 0.02 | K27: 0.02
A28: 27 | B28: 1297.5 | C28: 3480 | D28: -0.2 | E28: 1016.7 | F28: 0 | G28: 0.29 | H28: 1.28 | I28: 0 | J28: 0 | K28: 0
A29: 28 | B29: 1155.1 | C29: 5460 | D29: 8.2 | E29: 1921.1 | F29: 0 | G29: 0.35 | H29: 0.6 | I29: 1 | J29: 0.01 | K29: 0
A30: 29 | B30: 1153.3 | C30: 204.8 | D30: -22.4 | E30: 489.3 | F30: -0.11 | G30: 2.39 | H30: 2.36 | I30: 0 | J30: -0.02 | K30: -0.05
A31: 30 | B31: 1127.2 | C31: 116.4 | D31: 17.5 | E31: 295.6 | F31: 0.15 | G31: 2.54 | H31: 3.81 | I31: 1 | J31: 0.02 | K31: 0.06
A32: 31 | B32: 1063.8 | C32: 526.4 | D32: -20.5 | E32: 1515.2 | F32: -0.04 | G32: 2.88 | H32: 0.7 | I32: 0 | J32: -0.02 | K32: -0.01
A33: 32 | B33: 979.8 | C33: 117.7 | D33: 127.1 | E33: 1044.1 | F33: 1.08 | G33: 8.87 | H33: 0.94 | I33: 1 | J33: 0.13 | K33: 0.12
A34: 33 | B34: 943.1 | C34: 116.8 | D34: 19.1 | E34: 410.8 | F34: 0.16 | G34: 3.52 | H34: 2.3 | I34: 1 | J34: 0.02 | K34: 0.05
A35: 34 | B35: 9000 | C35: 8750 | D35: 50.6 | E35: 1400.7 | F35: 0.01 | G35: 0.16 | H35: 6.43 | I35: 1 | J35: 0.01 | K35: 0.04
A36: 35 | B36: 877.5 | C36: 172.7 | D36: 3.5 | E36: 232.4 | F36: 0.02 | G36: 1.35 | H36: 3.78 | I36: 1 | J36: 0 | K36: 0.02
A37: 36 | B37: 870.9 | C37: 211.2 | D37: 46.9 | E37: 453.4 | F37: 0.22 | G37: 2.15 | H37: 1.92 | I37: 1 | J37: 0.05 | K37: 0.1
A38: 37 | B38: 856.8 | C38: 487.3 | D38: -43.9 | E38: 727.8 | F38: -0.09 | G38: 1.49 | H38: 1.18 | I38: 0 | J38: -0.05 | K38: -0.06
A39: 38 | B39: 852.4 | C39: 416.7 | D39: 25.4 | E39: 9690 | F39: 0.06 | G39: 23.25 | H39: 0.09 | I39: 1 | J39: 0.03 | K39: 0
A40: 39 | B40: 846.3 | C40: 422.8 | D40: -224.3 | E40: 749.5 | F40: -0.53 | G40: 1.77 | H40: 1.13 | I40: 0 | J40: -0.27 | K40: -0.3
A41: 40 | B41: 833.5 | C41: 633.4 | D41: 400 | E41: 953.9 | F41: 0.63 | G41: 1.51 | H41: 0.87 | I41: 1 | J41: 0.48 | K41: 0.42
A42: 41 | B42: 8260 | C42: 6068.5 | D42: -623.4 | E42: 12958.4 | F42: -0.1 | G42: 2.14 | H42: 0.64 | I42: 0 | J42: -0.08 | K42: -0.05
A43: 42 | B43: 825.3 | C43: 55.6 | D43: 24.1 | E43: 259.3 | F43: 0.43 | G43: 4.66 | H43: 3.18 | I43: 1 | J43: 0.03 | K43: 0.09
A44: 43 | B44: 803.3 | C44: 115.1 | D44: 57.8 | E44: 184.3 | F44: 0.5 | G44: 1.6 | H44: 4.36 | I44: 1 | J44: 0.07 | K44: 0.31
A45: 44 | B45: 803.3 | C45: 411.9 | D45: -41.9 | E45: 1635.5 | F45: -0.1 | G45: 3.97 | H45: 0.49 | I45: 0 | J45: -0.05 | K45: -0.03
A46: 45 | B46: 802.1 | C46: 187.9 | D46: -4330 | E46: 778.8 | F46: -23.04 | G46: 4.14 | H46: 1.03 | I46: 0 | J46: -5.4 | K46: -5.56
A47: 46 | B47: 801.3 | C47: 75.1 | D47: -183.3 | E47: 1298.4 | F47: -2.44 | G47: 17.29 | H47: 0.62 | I47: 0 | J47: -0.23 | K47: -0.14
A48: 47 | B48: 795.8 | C48: 239.5 | D48: 9.5 | E48: 5520 | F48: 0.04 | G48: 23.05 | H48: 0.14 | I48: 1 | J48: 0.01 | K48: 0
A49: 48 | B49: 795.3 | C49: 275.1 | D49: 26.3 | E49: 8470 | F49: 0.1 | G49: 30.79 | H49: 0.09 | I49: 1 | J49: 0.03 | K49: 0
A50: 49 | B50: 791.6 | C50: 229.2 | D50: 22.1 | E50: 528.7 | F50: 0.1 | G50: 2.31 | H50: 1.5 | I50: 1 | J50: 0.03 | K50: 0.04
A51: 50 | B51: 790.8 | C51: 356.3 | D51: 118.3 | E51: 807.3 | F51: 0.33 | G51: 2.27 | H51: 0.98 | I51: 1 | J51: 0.15 | K51: 0.15
A52: 51 | B52: 7730 | C52: 72.4 | D52: -12.8 | E52: 203.9 | F52: -0.18 | G52: 2.82 | H52: 37.91 | I52: 0 | J52: 0 | K52: -0.06
A53: 52 | B53: 772.8 | C53: 122.5 | D53: 11.1 | E53: 618.5 | F53: 0.09 | G53: 5.05 | H53: 1.25 | I53: 1 | J53: 0.01 | K53: 0.02
A54: 53 | B54: 731.7 | C54: 239.1 | D54: -740 | E54: 1550.8 | F54: -3.09 | G54: 6.49 | H54: 0.47 | I54: 0 | J54: -1.01 | K54: -0.48
A55: 54 | B55: 692.5 | C55: 85.3 | D55: 10.9 | E55: 502.7 | F55: 0.13 | G55: 5.89 | H55: 1.38 | I55: 1 | J55: 0.02 | K55: 0.02
A56: 55 | B56: 6900 | C56: 370 | D56: -1.9 | E56: 173.8 | F56: -0.01 | G56: 0.47 | H56: 39.7 | I56: 0 | J56: 0 | K56: -0.01
A57: 56 | B57: 678.4 | C57: 295.7 | D57: 58.2 | E57: 1344.9 | F57: 0.2 | G57: 4.55 | H57: 0.5 | I57: 1 | J57: 0.09 | K57: 0.04
A58: 57 | B58: 676.9 | C58: 162.6 | D58: 9.1 | E58: 681.4 | F58: 0.06 | G58: 4.19 | H58: 0.99 | I58: 1 | J58: 0.01 | K58: 0.01
A59: 58 | B59: 672.6 | C59: 140 | D59: -88.9 | E59: 5980 | F59: -0.64 | G59: 42.71 | H59: 0.11 | I59: 0 | J59: -0.13 | K59: -0.01
A60: 59 | B60: 671.4 | C60: 644.9 | D60: -14.9 | E60: 1053.5 | F60: -0.02 | G60: 1.63 | H60: 0.64 | I60: 0 | J60: -0.02 | K60: -0.01
A61: 60 | B61: 665.4 | C61: 996.8 | D61: 51.8 | E61: 2536.6 | F61: 0.05 | G61: 2.54 | H61: 0.26 | I61: 1 | J61: 0.08 | K61: 0.02
A62: 61 | B62: 660.2 | C62: 195.1 | D62: -140 | E62: 525.7 | F62: -0.72 | G62: 2.69 | H62: 1.26 | I62: 0 | J62: -0.21 | K62: -0.27
A63: 62 | B63: 648.4 | C63: 184.7 | D63: -132.6 | E63: 549.8 | F63: -0.72 | G63: 2.98 | H63: 1.18 | I63: 0 | J63: -0.2 | K63: -0.24
A64: 63 | B64: 6330 | C64: 222.7 | D64: -31.5 | E64: 1517.6 | F64: -0.14 | G64: 6.81 | H64: 4.17 | I64: 0 | J64: 0 | K64: -0.02
A65: 64 | B65: 631.9 | C65: 143.3 | D65: 29.6 | E65: 565.7 | F65: 0.21 | G65: 3.95 | H65: 1.12 | I65: 1 | J65: 0.05 | K65: 0.05
A66: 65 | B66: 629.4 | C66: 170.2 | D66: 23.3 | E66: 8530 | F66: 0.14 | G66: 50.12 | H66: 0.07 | I66: 1 | J66: 0.04 | K66: 0
A67: 66 | B67: 628.8 | C67: 1034.2 | D67: 37.9 | E67: 1715.5 | F67: 0.04 | G67: 1.66 | H67: 0.37 | I67: 1 | J67: 0.06 | K67: 0.02
A68: 67 | B68: 6270 | C68: 289.3 | D68: -61.5 | E68: 580.1 | F68: -0.21 | G68: 2.01 | H68: 10.81 | I68: 0 | J68: -0.01 | K68: -0.11
A69: 68 | B69: 619.6 | C69: 917.8 | D69: 17.6 | E69: 1317.7 | F69: 0.02 | G69: 1.44 | H69: 0.47 | I69: 1 | J69: 0.03 | K69: 0.01
A70: 69 | B70: 604.9 | C70: 190.2 | D70: -21.3 | E70: 501.6 | F70: -0.11 | G70: 2.64 | H70: 1.21 | I70: 0 | J70: -0.04 | K70: -0.04
A71: 70 | B71: 603.7 | C71: 312.1 | D71: -282.8 | E71: 761.6 | F71: -0.91 | G71: 2.44 | H71: 0.79 | I71: 0 | J71: -0.47 | K71: -0.37
A72: 71 | B72: 596.9 | C72: 203.6 | D72: 1130 | E72: 1057.8 | F72: 5.55 | G72: 5.2 | H72: 0.56 | I72: 1 | J72: 1.89 | K72: 1.07
A73: 72 | B73: 595.4 | C73: 394.3 | D73: 56.9 | E73: 887.5 | F73: 0.14 | G73: 2.25 | H73: 0.67 | I73: 1 | J73: 0.1 | K73: 0.06
A74: 73 | B74: 592.9 | C74: 19.6 | D74: 6.4 | E74: 126.7 | F74: 0.33 | G74: 6.46 | H74: 4.68 | I74: 1 | J74: 0.01 | K74: 0.05
A75: 74 | B75: 591.9 | C75: 1560 | D75: -108.6 | E75: 923.9 | F75: -0.07 | G75: 0.59 | H75: 0.64 | I75: 0 | J75: -0.18 | K75: -0.12
A76: 75 | B76: 587.8 | C76: 228.4 | D76: 13.1 | E76: 444.1 | F76: 0.06 | G76: 1.94 | H76: 1.32 | I76: 1 | J76: 0.02 | K76: 0.03
A77: 76 | B77: 575.8 | C77: 1188.6 | D77: -62.1 | E77: 2270.6 | F77: -0.05 | G77: 1.91 | H77: 0.25 | I77: 0 | J77: -0.11 | K77: -0.03
A78: 77 | B78: 570.9 | C78: 679.1 | D78: -100.3 | E78: 1572.3 | F78: -0.15 | G78: 2.32 | H78: 0.36 | I78: 0 | J78: -0.18 | K78: -0.06
A79: 78 | B79: 569.4 | C79: 143.8 | D79: -24.2 | E79: 275.2 | F79: -0.17 | G79: 1.91 | H79: 2.07 | I79: 0 | J79: -0.04 | K79: -0.09
A80: 79 | B80: 559.8 | C80: 105.5 | D80: -36.9 | E80: 315.5 | F80: -0.35 | G80: 2.99 | H80: 1.77 | I80: 0 | J80: -0.07 | K80: -0.12
A81: 80 | B81: 556.1 | C81: 226.7 | D81: 17.6 | E81: 6830 | F81: 0.08 | G81: 30.13 | H81: 0.08 | I81: 1 | J81: 0.03 | K81: 0
A82: 81 | B82: 547.7 | C82: 163.3 | D82: 54.5 | E82: 282.2 | F82: 0.33 | G82: 1.73 | H82: 1.94 | I82: 1 | J82: 0.1 | K82: 0.19
A83: 82 | B83: 542.2 | C83: 26.9 | D83: 3.7 | E83: 560 | F83: 0.14 | G83: 20.82 | H83: 0.97 | I83: 1 | J83: 0.01 | K83: 0.01
A84: 83 | B84: 539.3 | C84: 32.8 | D84: -2.3 | E84: 203.9 | F84: -0.07 | G84: 6.22 | H84: 2.64 | I84: 0 | J84: 0 | K84: -0.01
A85: 84 | B85: 536.3 | C85: 1720 | D85: 41.5 | E85: 402.6 | F85: 0.02 | G85: 0.23 | H85: 1.33 | I85: 1 | J85: 0.08 | K85: 0.1
A86: 85 | B86: 532.1 | C86: 93.8 | D86: -103.1 | E86: 847.9 | F86: -1.1 | G86: 9.04 | H86: 0.63 | I86: 0 | J86: -0.19 | K86: -0.12
A87: 86 | B87: 525.4 | C87: 4550 | D87: 7.7 | E87: 1047.7 | F87: 0 | G87: 0.23 | H87: 0.5 | I87: 1 | J87: 0.01 | K87: 0.01
A88: 87 | B88: 523.9 | C88: 600.7 | D88: -212.4 | E88: 1777.6 | F88: -0.35 | G88: 2.96 | H88: 0.29 | I88: 0 | J88: -0.41 | K88: -0.12
A89: 88 | B89: 513.2 | C89: 209.6 | D89: 39.2 | E89: 518.6 | F89: 0.19 | G89: 2.47 | H89: 0.99 | I89: 1 | J89: 0.08 | K89: 0.08
A90: 89 | B90: 508.6 | C90: 656.6 | D90: 73.6 | E90: 777.9 | F90: 0.11 | G90: 1.18 | H90: 0.65 | I90: 1 | J90: 0.14 | K90: 0.09
A91: 90 | B91: 508.6 | C91: 126.2 | D91: -9.3 | E91: 236.1 | F91: -0.07 | G91: 1.87 | H91: 2.15 | I91: 0 | J91: -0.02 | K91: -0.04
A92: 91 | B92: 4970 | C92: 112.1 | D92: -8.2 | E92: 314.2 | F92: -0.07 | G92: 2.8 | H92: 15.82 | I92: 0 | J92: 0 | K92: -0.03
A93: 92 | B93: 496.4 | C93: 525.8 | D93: 50.7 | E93: 1040.3 | F93: 0.1 | G93: 1.98 | H93: 0.48 | I93: 1 | J93: 0.1 | K93: 0.05
A94: 93 | B94: 486.7 | C94: 259.9 | D94: 54.5 | E94: 624.5 | F94: 0.21 | G94: 2.4 | H94: 0.78 | I94: 1 | J94: 0.11 | K94: 0.09
A95: 94 | B95: 486.7 | C95: 76.8 | D95: 15.1 | E95: 214.7 | F95: 0.2 | G95: 2.8 | H95: 2.27 | I95: 1 | J95: 0.03 | K95: 0.07
A96: 95 | B96: 484.7 | C96: 3260 | D96: 22.7 | E96: 779.4 | F96: 0.01 | G96: 0.24 | H96: 0.62 | I96: 1 | J96: 0.05 | K96: 0.03
A97: 96 | B97: 484.4 | C97: 428.3 | D97: 910 | E97: 885.9 | F97: 2.12 | G97: 2.07 | H97: 0.55 | I97: 1 | J97: 1.88 | K97: 1.03
A98: 97 | B98: 480.5 | C98: 142.3 | D98: 3.5 | E98: 283.1 | F98: 0.02 | G98: 1.99 | H98: 1.7 | I98: 1 | J98: 0.01 | K98: 0.01
A99: 98 | B99: 474.5 | C99: 1330 | D99: -202.4 | E99: 1031.3 | F99: -0.15 | G99: 0.78 | H99: 0.46 | I99: 0 | J99: -0.43 | K99: -0.2
A100: 99 | B100: 473.9 | C100: 165.2 | D100: 16.5 | E100: 414.8 | F100: 0.1 | G100: 2.51 | H100: 1.14 | I100: 1 | J100: 0.03 | K100: 0.04
A101: 100 | B101: 471.8 | C101: 39.8 | D101: 11.4 | E101: 195.9 | F101: 0.29 | G101: 4.92 | H101: 2.41 | I101: 1 | J101: 0.02 | K101: 0.06
A102: 101 | B102: 468.9 | C102: 89.9 | D102: 7.5 | E102: 3960 | F102: 0.08 | G102: 44.05 | H102: 0.12 | I102: 1 | J102: 0.02 | K102: 0
A103: 102 | B103: 468.2 | C103: 334.2 | D103: 60.6 | E103: 658.4 | F103: 0.18 | G103: 1.97 | H103: 0.71 | I103: 1 | J103: 0.13 | K103: 0.09
A104: 103 | B104: 465.5 | C104: 190 | D104: -36.1 | E104: 676.6 | F104: -0.19 | G104: 3.56 | H104: 0.69 | I104: 0 | J104: -0.08 | K104: -0.05
A105: 104 | B105: 450.9 | C105: 182.2 | D105: 33.6 | E105: 259.2 | F105: 0.18 | G105: 1.42 | H105: 1.74 | I105: 1 | J105: 0.07 | K105: 0.13
A106: 105 | B106: 448.5 | C106: 269.1 | D106: 65.6 | E106: 387.1 | F106: 0.24 | G106: 1.44 | H106: 1.16 | I106: 1 | J106: 0.15 | K106: 0.17
A107: 106 | B107: 440.4 | C107: 18.2 | D107: 9.9 | E107: 570 | F107: 0.54 | G107: 31.32 | H107: 0.77 | I107: 1 | J107: 0.02 | K107: 0.02
A108: 107 | B108: 429.3 | C108: 124.7 | D108: 7.2 | E108: 286.8 | F108: 0.06 | G108: 2.3 | H108: 1.5 | I108: 1 | J108: 0.02 | K108: 0.03
A109: 108 | B109: 428.1 | C109: 122.8 | D109: 3.2 | E109: 175.3 | F109: 0.03 | G109: 1.43 | H109: 2.44 | I109: 1 | J109: 0.01 | K109: 0.02
A110: 109 | B110: 423.2 | C110: 1620 | D110: 150 | E110: 205.8 | F110: 0.09 | G110: 0.13 | H110: 2.06 | I110: 1 | J110: 0.35 | K110: 0.73
A111: 110 | B111: 422.4 | C111: 187.5 | D111: 30.8 | E111: 251.9 | F111: 0.16 | G111: 1.34 | H111: 1.68 | I111: 1 | J111: 0.07 | K111: 0.12
A112: 111 | B112: 4130 | C112: 38.4 | D112: -62.6 | E112: 272.7 | F112: -1.63 | G112: 7.1 | H112: 15.14 | I112: 0 | J112: -0.02 | K112: -0.23
A113: 112 | B113: 4120 | C113: 1840 | D113: 54.4 | E113: 1159.3 | F113: 0.03 | G113: 0.63 | H113: 3.55 | I113: 1 | J113: 0.01 | K113: 0.05
A114: 113 | B114: 4100 | C114: 169.7 | D114: 28.2 | E114: 303.6 | F114: 0.17 | G114: 1.79 | H114: 13.5 | I114: 1 | J114: 0.01 | K114: 0.09
A115: 114 | B115: 408.1 | C115: 60 | D115: -29.9 | E115: 4150 | F115: -0.5 | G115: 69.17 | H115: 0.1 | I115: 0 | J115: -0.07 | K115: -0.01
A116: 115 | B116: 405.6 | C116: 399.9 | D116: 56.5 | E116: 520.4 | F116: 0.14 | G116: 1.3 | H116: 0.78 | I116: 1 | J116: 0.14 | K116: 0.11
A117: 116 | B117: 404.3 | C117: 62.5 | D117: 0.9 | E117: 1610 | F117: 0.01 | G117: 25.76 | H117: 0.25 | I117: 1 | J117: 0 | K117: 0
A118: 117 | B118: 401.5 | C118: 305.2 | D118: 25.3 | E118: 367.5 | F118: 0.08 | G118: 1.2 | H118: 1.09 | I118: 1 | J118: 0.06 | K118: 0.07
A119: 118 | B119: 400.5 | C119: 48.5 | D119: 16.3 | E119: 80.9 | F119: 0.34 | G119: 1.67 | H119: 4.95 | I119: 1 | J119: 0.04 | K119: 0.2
A120: 119 | B120: 400.2 | C120: 116.7 | D120: -8.4 | E120: 213.9 | F120: -0.07 | G120: 1.83 | H120: 1.87 | I120: 0 | J120: -0.02 | K120: -0.04
A121: 120 | B121: 398.1 | C121: 327.4 | D121: 34.4 | E121: 389.5 | F121: 0.11 | G121: 1.19 | H121: 1.02 | I121: 1 | J121: 0.09 | K121: 0.09
A122: 121 | B122: 395.1 | C122: 704.6 | D122: 79.3 | E122: 1378.3 | F122: 0.11 | G122: 1.96 | H122: 0.29 | I122: 1 | J122: 0.2 | K122: 0.06
A123: 122 | B123: 393.9 | C123: 153.3 | D123: -23.8 | E123: 404.1 | F123: -0.16 | G123: 2.64 | H123: 0.97 | I123: 0 | J123: -0.06 | K123: -0.06
A124: 123 | B124: 393.3 | C124: 262.2 | D124: 63.9 | E124: 7900 | F124: 0.24 | G124: 30.13 | H124: 0.05 | I124: 1 | J124: 0.16 | K124: 0.01
A125: 124 | B125: 387.6 | C125: 231.8 | D125: -70 | E125: 708.8 | F125: -0.3 | G125: 3.06 | H125: 0.55 | I125: 0 | J125: -0.18 | K125: -0.1
A126: 125 | B126: 386.1 | C126: 367.3 | D126: 7.6 | E126: 764.1 | F126: 0.02 | G126: 2.08 | H126: 0.51 | I126: 1 | J126: 0.02 | K126: 0.01
A127: 126 | B127: 381.1 | C127: 86.2 | D127: 2.2 | E127: 113.7 | F127: 0.03 | G127: 1.32 | H127: 3.35 | I127: 1 | J127: 0.01 | K127: 0.02
A128: 127 | B128: 380.5 | C128: 31.9 | D128: 2.9 | E128: 171.2 | F128: 0.09 | G128: 5.37 | H128: 2.22 | I128: 1 | J128: 0.01 | K128: 0.02
A129: 128 | B129: 377.7 | C129: 159.2 | D129: 2.1 | E129: 206.4 | F129: 0.01 | G129: 1.3 | H129: 1.83 | I129: 1 | J129: 0.01 | K129: 0.01
A130: 129 | B130: 374.9 | C130: 69.8 | D130: 23.1 | E130: 284.3 | F130: 0.33 | G130: 4.07 | H130: 1.32 | I130: 1 | J130: 0.06 | K130: 0.08
A131: 130 | B131: 373.2 | C131: 604.6 | D131: 179.4 | E131: 1275.8 | F131: 0.3 | G131: 2.11 | H131: 0.29 | I131: 1 | J131: 0.48 | K131: 0.14
A132: 131 | B132: 371.9 | C132: 252.5 | D132: 44.1 | E132: 397.2 | F132: 0.17 | G132: 1.57 | H132: 0.94 | I132: 1 | J132: 0.12 | K132: 0.11
A133: 132 | B133: 368.9 | C133: 27.1 | D133: -27.7 | E133: 226.1 | F133: -1.02 | G133: 8.34 | H133: 1.63 | I133: 0 | J133: -0.08 | K133: -0.12
A134: 133 | B134: 368.1 | C134: 611.6 | D134: 36.9 | E134: 1102.1 | F134: 0.06 | G134: 1.8 | H134: 0.33 | I134: 1 | J134: 0.1 | K134: 0.03
A135: 134 | B135: 361.3 | C135: 150.8 | D135: 50.7 | E135: 300.1 | F135: 0.34 | G135: 1.99 | H135: 1.2 | I135: 1 | J135: 0.14 | K135: 0.17
A136: 135 | B136: 358.2 | C136: 41.8 | D136: 8.4 | E136: 860 | F136: 0.2 | G136: 20.57 | H136: 0.42 | I136: 1 | J136: 0.02 | K136: 0.01
A137: 136 | B137: 355.1 | C137: 147.4 | D137: 4.2 | E137: 527.5 | F137: 0.03 | G137: 3.58 | H137: 0.67 | I137: 1 | J137: 0.01 | K137: 0.01
A138: 137 | B138: 352.3 | C138: 102.6 | D138: 3.3 | E138: 490.4 | F138: 0.03 | G138: 4.78 | H138: 0.72 | I138: 1 | J138: 0.01 | K138: 0.01
A139: 138 | B139: 351.9 | C139: 58.5 | D139: 14.1 | E139: 339.4 | F139: 0.24 | G139: 5.8 | H139: 1.04 | I139: 1 | J139: 0.04 | K139: 0.04
A140: 139 | B140: 351.6 | C140: 160.2 | D140: 10.7 | E140: 2380 | F140: 0.07 | G140: 14.86 | H140: 0.15 | I140: 1 | J140: 0.03 | K140: 0
A141: 140 | B141: 351.1 | C141: 235.3 | D141: 12.8 | E141: 367.4 | F141: 0.05 | G141: 1.56 | H141: 0.96 | I141: 1 | J141: 0.04 | K141: 0.03
A142: 141 | B142: 348.9 | C142: 33.1 | D142: 8.7 | E142: 49.8 | F142: 0.26 | G142: 1.5 | H142: 7.01 | I142: 1 | J142: 0.02 | K142: 0.17
A143: 142 | B143: 342.4 | C143: 8960 | D143: -149.7 | E143: 1174.4 | F143: -0.02 | G143: 0.13 | H143: 0.29 | I143: 0 | J143: -0.44 | K143: -0.13
A144: 143 | B144: 337.9 | C144: 43.4 | D144: 4.7 | E144: 128.2 | F144: 0.11 | G144: 2.95 | H144: 2.64 | I144: 1 | J144: 0.01 | K144: 0.04
A145: 144 | B145: 337.5 | C145: 70.4 | D145: 47.8 | E145: 213.3 | F145: 0.68 | G145: 3.03 | H145: 1.58 | I145: 1 | J145: 0.14 | K145: 0.22
A146: 145 | B146: 3370 | C146: 147.1 | D146: -39.2 | E146: 300.2 | F146: -0.27 | G146: 2.04 | H146: 11.23 | I146: 0 | J146: -0.01 | K146: -0.13
A147: 146 | B147: 336.4 | C147: 249.5 | D147: 27.5 | E147: 319.9 | F147: 0.11 | G147: 1.28 | H147: 1.05 | I147: 1 | J147: 0.08 | K147: 0.09
A148: 147 | B148: 3360 | C148: 163.9 | D148: 41.6 | E148: 231.2 | F148: 0.25 | G148: 1.41 | H148: 14.53 | I148: 1 | J148: 0.01 | K148: 0.18
A149: 148 | B149: 335.3 | C149: 136.3 | D149: 10.4 | E149: 304.3 | F149: 0.08 | G149: 2.23 | H149: 1.1 | I149: 1 | J149: 0.03 | K149: 0.03
A150: 149 | B150: 335.3 | C150: 65.6 | D150: -5.1 | E150: 128.2 | F150: -0.08 | G150: 1.95 | H150: 2.62 | I150: 0 | J150: -0.02 | K150: -0.04
A151: 150 | B151: 325.3 | C151: 320.7 | D151: 380 | E151: 428.4 | F151: 1.18 | G151: 1.34 | H151: 0.76 | I151: 1 | J151: 1.17 | K151: 0.89
A152: 151 | B152: 324.6 | C152: 38.8 | D152: 50 | E152: 79.7 | F152: 1.29 | G152: 2.05 | H152: 4.07 | I152: 1 | J152: 0.15 | K152: 0.63
A153: 152 | B153: 323.5 | C153: 249.4 | D153: -21.4 | E153: 9280 | F153: -0.09 | G153: 37.21 | H153: 0.03 | I153: 0 | J153: -0.07 | K153: 0
A154: 153 | B154: 322.2 | C154: 63.9 | D154: -6.8 | E154: 1480 | F154: -0.11 | G154: 23.16 | H154: 0.22 | I154: 0 | J154: -0.02 | K154: 0
A155: 154 | B155: 320.4 | C155: 204.2 | D155: 6.1 | E155: 474.2 | F155: 0.03 | G155: 2.32 | H155: 0.68 | I155: 1 | J155: 0.02 | K155: 0.01
A156: 155 | B156: 3190 | C156: 164.9 | D156: -61.2 | E156: 462.8 | F156: -0.37 | G156: 2.81 | H156: 6.89 | I156: 0 | J156: -0.02 | K156: -0.13
A157: 156 | B157: 318.1 | C157: 47.4 | D157: -3.2 | E157: 136.9 | F157: -0.07 | G157: 2.89 | H157: 2.32 | I157: 0 | J157: -0.01 | K157: -0.02
A158: 157 | B158: 313.4 | C158: 1950 | D158: 15.7 | E158: 3770 | F158: 0.01 | G158: 1.93 | H158: 0.08 | I158: 1 | J158: 0.05 | K158: 0
A159: 158 | B159: 313.1 | C159: 160.7 | D159: -8.3 | E159: 282.5 | F159: -0.05 | G159: 1.76 | H159: 1.11 | I159: 0 | J159: -0.03 | K159: -0.03
A160: 159 | B160: 310.1 | C160: 26.8 | D160: -7.2 | E160: 174.6 | F160: -0.27 | G160: 6.51 | H160: 1.78 | I160: 0 | J160: -0.02 | K160: -0.04
A161: 160 | B161: 309.3 | C161: 1390.4 | D161: 52.1 | E161: 1794.7 | F161: 0.04 | G161: 1.29 | H161: 0.17 | I161: 1 | J161: 0.17 | K161: 0.03
A162: 161 | B162: 308.7 | C162: 17.5 | D162: -5.5 | E162: 130.9 | F162: -0.31 | G162: 7.48 | H162: 2.36 | I162: 0 | J162: -0.02 | K162: -0.04
A163: 162 | B163: 306.7 | C163: 249.4 | D163: 56.1 | E163: 527.5 | F163: 0.22 | G163: 2.12 | H163: 0.58 | I163: 1 | J163: 0.18 | K163: 0.11
A164: 163 | B164: 302.7 | C164: 25.4 | D164: 20 | E164: 100.8 | F164: 0.79 | G164: 3.97 | H164: 3 | I164: 1 | J164: 0.07 | K164: 0.2
A165: 164 | B165: 301.9 | C165: 59.7 | D165: 10.5 | E165: 138.2 | F165: 0.18 | G165: 2.31 | H165: 2.18 | I165: 1 | J165: 0.03 | K165: 0.08
A166: 165 | B166: 301.7 | C166: 3.9 | D166: -1260 | E166: 129.9 | F166: -323.08 | G166: 33.31 | H166: 2.32 | I166: 0 | J166: -4.18 | K166: -9.7
A167: 166 | B167: 300.5 | C167: 64.7 | D167: 0.5 | E167: 187.2 | F167: 0.01 | G167: 2.89 | H167: 1.61 | I167: 1 | J167: 0 | K167: 0
A168: 167 | B168: 299.7 | C168: 68.2 | D168: -6.9 | E168: 117.3 | F168: -0.1 | G168: 1.72 | H168: 2.55 | I168: 0 | J168: -0.02 | K168: -0.06
A169: 168 | B169: 299.5 | C169: 12.1 | D169: 30 | E169: 106.6 | F169: 2.48 | G169: 8.81 | H169: 2.81 | I169: 1 | J169: 0.1 | K169: 0.28
A170: 169 | B170: 297.4 | C170: 154.1 | D170: 25.7 | E170: 266.1 | F170: 0.17 | G170: 1.73 | H170: 1.12 | I170: 1 | J170: 0.09 | K170: 0.1
A171: 170 | B171: 296.4 | C171: 368.9 | D171: 57.2 | E171: 434.1 | F171: 0.16 | G171: 1.18 | H171: 0.68 | I171: 1 | J171: 0.19 | K171: 0.13
A172: 171 | B172: 295.5 | C172: 81.1 | D172: 0.4 | E172: 144.4 | F172: 0 | G172: 1.78 | H172: 2.05 | I172: 1 | J172: 0 | K172: 0
A173: 172 | B173: 294.8 | C173: 156.1 | D173: -1.1 | E173: 4580 | F173: -0.01 | G173: 29.34 | H173: 0.06 | I173: 0 | J173: 0 | K173: 0
A174: 173 | B174: 2940 | C174: 93.2 | D174: 62.3 | E174: 371.3 | F174: 0.67 | G174: 3.98 | H174: 7.92 | I174: 1 | J174: 0.02 | K174: 0.17
A175: 174 | B175: 288.9 | C175: 192.3 | D175: 4.8 | E175: 323.2 | F175: 0.02 | G175: 1.68 | H175: 0.89 | I175: 1 | J175: 0.02 | K175: 0.01
A176: 175 | B176: 287.5 | C176: 1889.6 | D176: -3170 | E176: 3076.8 | F176: -1.68 | G176: 1.63 | H176: 0.09 | I176: 0 | J176: -11.03 | K176: -1.03
A177: 176 | B177: 283.8 | C177: 10.4 | D177: -12.3 | E177: 183.3 | F177: -1.18 | G177: 17.63 | H177: 1.55 | I177: 0 | J177: -0.04 | K177: -0.07
A178: 177 | B178: 283.4 | C178: 62.3 | D178: -5.6 | E178: 144.9 | F178: -0.09 | G178: 2.33 | H178: 1.96 | I178: 0 | J178: -0.02 | K178: -0.04
A179: 178 | B179: 279.5 | C179: 18.8 | D179: 2.4 | E179: 89.1 | F179: 0.13 | G179: 4.74 | H179: 3.14 | I179: 1 | J179: 0.01 | K179: 0.03
A180: 179 | B180: 2790 | C180: 42.6 | D180: 14.1 | E180: 72.2 | F180: 0.33 | G180: 1.69 | H180: 38.64 | I180: 1 | J180: 0.01 | K180: 0.2
A181: 180 | B181: 276.8 | C181: 23.2 | D181: -7.4 | E181: 144.8 | F181: -0.32 | G181: 6.24 | H181: 1.91 | I181: 0 | J181: -0.03 | K181: -0.05
A182: 181 | B182: 271.1 | C182: 211.8 | D182: 55.7 | E182: 508.7 | F182: 0.26 | G182: 2.4 | H182: 0.53 | I182: 1 | J182: 0.21 | K182: 0.11
A183: 182 | B183: 2700 | C183: 45.1 | D183: 49.4 | E183: 194.5 | F183: 1.1 | G183: 4.31 | H183: 13.88 | I183: 1 | J183: 0.02 | K183: 0.25
A184: 183 | B184: 269.7 | C184: 79.1 | D184: 29.5 | E184: 261.4 | F184: 0.37 | G184: 3.3 | H184: 1.03 | I184: 1 | J184: 0.11 | K184: 0.11
A185: 184 | B185: 268.1 | C185: 79.8 | D185: 7.8 | E185: 1390 | F185: 0.1 | G185: 17.42 | H185: 0.19 | I185: 1 | J185: 0.03 | K185: 0.01
A186: 185 | B186: 266.2 | C186: 50.1 | D186: -8.4 | E186: 3070 | F186: -0.17 | G186: 61.28 | H186: 0.09 | I186: 0 | J186: -0.03 | K186: 0
A187: 186 | B187: 263.2 | C187: 109.9 | D187: 30.9 | E187: 273.7 | F187: 0.28 | G187: 2.49 | H187: 0.96 | I187: 1 | J187: 0.12 | K187: 0.11
A188: 187 | B188: 262.8 | C188: 1790 | D188: 28.1 | E188: 256.9 | F188: 0.02 | G188: 0.14 | H188: 1.02 | I188: 1 | J188: 0.11 | K188: 0.11
A189: 188 | B189: 262.7 | C189: 3.7 | D189: 1.1 | E189: 39.3 | F189: 0.3 | G189: 10.62 | H189: 6.68 | I189: 1 | J189: 0 | K189: 0.03
A190: 189 | B190: 260.6 | C190: 22.6 | D190: 43.8 | E190: 1261.1 | F190: 1.94 | G190: 55.8 | H190: 0.21 | I190: 1 | J190: 0.17 | K190: 0.03
A191: 190 | B191: 260.1 | C191: 62.8 | D191: -3.9 | E191: 141.3 | F191: -0.06 | G191: 2.25 | H191: 1.84 | I191: 0 | J191: -0.01 | K191: -0.03
A192: 191 | B192: 259.9 | C192: 60.8 | D192: -1.6 | E192: 183.4 | F192: -0.03 | G192: 3.02 | H192: 1.42 | I192: 0 | J192: -0.01 | K192: -0.01
A193: 192 | B193: 258.7 | C193: 226.5 | D193: 40.3 | E193: 464.1 | F193: 0.18 | G193: 2.05 | H193: 0.56 | I193: 1 | J193: 0.16 | K193: 0.09
A194: 193 | B194: 257.8 | C194: 17.7 | D194: 3.2 | E194: 42.7 | F194: 0.18 | G194: 2.41 | H194: 6.04 | I194: 1 | J194: 0.01 | K194: 0.07
A195: 194 | B195: 257.6 | C195: 24.6 | D195: 7.3 | E195: 74.3 | F195: 0.3 | G195: 3.02 | H195: 3.47 | I195: 1 | J195: 0.03 | K195: 0.1
A196: 195 | B196: 256.1 | C196: 33.6 | D196: -2.3 | E196: 61.1 | F196: -0.07 | G196: 1.82 | H196: 4.19 | I196: 0 | J196: -0.01 | K196: -0.04
A197: 196 | B197: 254.5 | C197: 109.3 | D197: 0.8 | E197: 198.7 | F197: 0.01 | G197: 1.82 | H197: 1.28 | I197: 1 | J197: 0 | K197: 0
A198: 197 | B198: 253.6 | C198: 540.8 | D198: -2000 | E198: 988.7 | F198: -3.7 | G198: 1.83 | H198: 0.26 | I198: 0 | J198: -7.89 | K198: -2.02
A199: 198 | B199: 250.7 | C199: 33.9 | D199: 8.5 | E199: 92.2 | F199: 0.25 | G199: 2.72 | H199: 2.72 | I199: 1 | J199: 0.03 | K199: 0.09
A200: 199 | B200: 248.7 | C200: 15.3 | D200: -1.5 | E200: 60.5 | F200: -0.1 | G200: 3.95 | H200: 4.11 | I200: 0 | J200: -0.01 | K200: -0.02
... 98 more rows

Sheet TabelaControle
B2: Observações | C2: d2 | D2: d3 | E2: D3 | F2: D4 | G2: A2 | I2: =INDEX($B$2:$G$26,1,$L$19+1) -> D3 | S2: d2
B3: 2 | C3: 1.128 | D3: 0.853 | E3: 0 | F3: 3.267 | G3: 1.88 | I3: =INDEX($B$2:$G$26,B3,$L$19) -> 0.853 | S3: d3
B4: 3 | C4: 1.693 | D4: 0.888 | E4: 0 | F4: 2.575 | G4: 1.023 | I4: =INDEX($B$2:$G$26,B4,$L$19) -> 0.888 | S4: D3
B5: 4 | C5: 2.059 | D5: 0.88 | E5: 0 | F5: 2.282 | G5: 0.729 | I5: 0.88 | S5: D4
B6: 5 | C6: 2.326 | D6: 0.864 | E6: 0 | F6: 2.114 | G6: 0.577 | I6: 0.864 | S6: A2
B7: 6 | C7: 2.534 | D7: 0.848 | E7: 0 | F7: 2.004 | G7: 0.483 | I7: 0.848
B8: 7 | C8: 2.704 | D8: 0.833 | E8: 0.076 | F8: 1.924 | G8: 0.419 | I8: 0.833
B9: 8 | C9: 2.847 | D9: 0.82 | E9: 0.136 | F9: 1.864 | G9: 0.373 | I9: 0.82
B10: 9 | C10: 2.97 | D10: 0.808 | E10: 0.184 | F10: 1.816 | G10: 0.337 | I10: 0.808
B11: 10 | C11: 3.078 | D11: 0.797 | E11: 0.223 | F11: 1.777 | G11: 0.308 | I11: 0.797
B12: 11 | C12: 3.173 | D12: 0.787 | E12: 0.256 | F12: 1.744 | G12: 0.285 | I12: 0.787
B13: 12 | C13: 3.258 | D13: 0.778 | E13: 0.283 | F13: 1.717 | G13: 0.266 | I13: 0.778
B14: 13 | C14: 3.336 | D14: 0.77 | E14: 0.307 | F14: 1.693 | G14: 0.249 | I14: 0.77
B15: 14 | C15: 3.407 | D15: 0.763 | E15: 0.328 | F15: 1.672 | G15: 0.235 | I15: 0.763
B16: 15 | C16: 3.472 | D16: 0.756 | E16: 0.347 | F16: 1.653 | G16: 0.223 | I16: 0.756
B17: 16 | C17: 3.532 | D17: 0.75 | E17: 0.363 | F17: 1.637 | G17: 0.212 | I17: 0.75
B18: 17 | C18: 3.588 | D18: 0.744 | E18: 0.378 | F18: 1.622 | G18: 0.203 | I18: 0.744
B19: 18 | C19: 3.64 | D19: 0.739 | E19: 0.391 | F19: 1.609 | G19: 0.194 | I19: 0.739 | L19: 3
B20: 19 | C20: 3.689 | D20: 0.733 | E20: 0.404 | F20: 1.596 | G20: 0.187 | I20: 0.733
B21: 20 | C21: 3.735 | D21: 0.729 | E21: 0.415 | F21: 1.585 | G21: 0.18 | I21: 0.729
B22: 21 | C22: 3.778 | D22: 0.724 | E22: 0.425 | F22: 1.575 | G22: 0.173 | I22: 0.724
B23: 22 | C23: 3.819 | D23: 0.72 | E23: 0.435 | F23: 1.565 | G23: 0.167 | I23: 0.72
B24: 23 | C24: 3.858 | D24: 0.716 | E24: 0.443 | F24: 1.557 | G24: 0.162 | I24: 0.716
B25: 24 | C25: 3.895 | D25: 0.712 | E25: 0.452 | F25: 1.548 | G25: 0.157 | I25: 0.712
B26: 25 | C26: 3.931 | D26: 0.708 | E26: 0.459 | F26: 1.541 | G26: 0.153 | I26: 0.708

Sheet Cesta
A2: 6.3.1 | H2: (c)
B3: Ano | C3: Pão | D3: Carne | E3: Ovos | F3: Alface | H3: Cesta
B4: 1992 | C4: 0.726 | D4: 1.926 | E4: 0.933 | F4: 0.573
B5: 1993 | C5: 0.748 | D5: 1.97 | E5: 0.898 | F5: 0.625
B6: 1994 | C6: 0.768 | D6: 1.892 | E6: 0.917 | F6: 0.506
B7: 1995 | C7: 0.767 | D7: 1.847 | E7: 0.882 | F7: 0.821
B8: 1996 | C8: 0.86 | D8: 1.799 | E8: 1.155 | F8: 0.769
B9: 1997 | C9: 0.862 | D9: 1.85 | E9: 1.148 | F9: 0.651
B10: 1998 | C10: 0.855 | D10: 1.818 | E10: 1.12 | F10: 1.072
B11: 1999 | C11: 0.872 | D11: 1.834 | E11: 1.053 | F11: 0.649
B12: 2000 | C12: 0.907 | D12: 1.903 | E12: 0.975 | F12: 0.748
B13: 2001 | C13: 0.982 | D13: 2.037 | E13: 1.011 | F13: 0.736
B14: 2002 | C14: 1.001 | D14: 2.151 | E14: 0.973 | F14: 1.003
B15: 2003 | C15: 1.042 | D15: 2.131 | E15: 1.175 | F15: 0.734
B16: 2004 | C16: 0.946 | D16: 2.585 | E16: 1.573 | F16: 0.876
B17: 2005 | C17: 0.997 | D17: 2.478 | E17: 1.211 | F17: 0.817
B18: 2006 | C18: 1.046 | D18: 2.607 | E18: 1.449 | F18: 0.874
B19: Quantidade | C19: 50 | D19: 22 | E19: 24 | F19: 18
A21: (a) | B21: 1992
B22: 1993
B23: 1994
B24: 1995
B25: 1996
B26: 1997
B27: 1998
B28: 1999
B29: 2000
B30: 2001
B31: 2002
B32: 2003
B33: 2004
B34: 2005
B35: 2006
A38: (b) | B38: 1992
B39: 1993
B40: 1994
B41: 1995
B42: 1996
B43: 1997
B44: 1998
B45: 1999
B46: 2000
B47: 2001
B48: 2002
B49: 2003
B50: 2004
B51: 2005
B52: 2006

Sheet Binom
A1: Distribuição Binomial | E1: x (faltas) | F1: Binomial | G1: Bin acum | H1: 1-Ac
B2: Faltas: | C2: p = | D2: 0.2 | E2: 0 | F2: =BINOMDIST(E2,$D$4,$D$2,FALSE) -> 0.0001329227996 | G2: =BINOMDIST(E2,$D$4,$D$2,TRUE) -> 0.0001329227996 | H2: =1-G2 -> 0.9998670772
E3: 1 | F3: =BINOMDIST(E3,$D$4,$D$2,FALSE) -> 0.001329227996 | G3: =BINOMDIST(E3,$D$4,$D$2,TRUE) -> 0.001462150795 | H3: =1-G3 -> 0.9985378492
C4: n = | D4: 40 | E4: 2 | F4: =BINOMDIST(E4,$D$4,$D$2,FALSE) -> 0.006479986479 | G4: 0.007942137275 | H4: =1-G4 -> 0.9920578627
C5: x = | D5: 15 | E5: 3 | F5: =BINOMDIST(E5,$D$4,$D$2,FALSE) -> 0.02051995718 | G5: 0.02846209446 | H5: 0.9715379055
C6: P(x) = | D6: =BINOMDIST(D5,D4,D2,FALSE) -> 0.004979656524 | E6: 4 | F6: 0.04745240099 | G6: 0.07591449545 | H6: 0.9240855046
E7: 5 | F7: 0.08541432178 | G7: 0.1613288172 | H7: 0.8386711828
E8: 6 | F8: 0.1245625526 | G8: 0.2858913698 | H8: 0.7141086302
C9: média = | D9: =D4*D2 -> 8 | E9: 7 | F9: 0.1512545282 | G9: 0.437145898 | H9: 0.562854102
E10: 8 | F10: 0.1559812322 | G10: 0.5931271301 | H10: 0.4068728699
A11: Probabilidade de: | E11: 9 | F11: 0.1386499841 | G11: 0.7317771143 | H11: 0.2682228857
A12: Faltar exatamente x | B12: Coluna G | E12: 10 | F12: 0.1074537377 | G12: 0.839230852 | H12: 0.160769148
A13: Faltar x ou menos | B13: Coluna H | E13: 11 | F13: 0.07326391208 | G13: 0.9124947641 | H13: 0.08750523592
A14: Faltar mais do que x | B14: Coluna I | E14: 12 | F14: 0.04426361355 | G14: 0.9567583776 | H14: 0.04324162238
E15: 13 | F15: 0.02383425345 | G15: 0.9805926311 | H15: 0.01940736893
E16: 14 | F16: 0.01149151506 | G16: 0.9920841461 | H16: 0.007915853874
E17: 15 | F17: 0.004979656524 | G17: 0.9970638027 | H17: 0.00293619735
E18: 16 | F18: 0.00194517833 | G18: 0.999008981 | H18: 0.00099101902
E19: 17 | F19: 0.0006865335281 | G19: 0.9996955145 | H19: 0.0003044854919
E20: 18 | F20: 0.0002193093215 | G20: 0.9999148238 | H20: 8.51761704e-05
E21: 19 | F21: 6.348427727e-05 | G21: 0.9999783081 | H21: 2.169189313e-05
E22: 20 | F22: 1.666462278e-05 | G22: 0.9999949727 | H22: 5.027270343e-06
E23: 21 | F23: 3.967767329e-06 | G23: 0.9999989405 | H23: 1.059503013e-06
E24: 22 | F24: 8.56677037e-07 | G24: 0.9999997972 | H24: 2.028259765e-07
E25: 23 | F25: 1.676107246e-07 | G25: 0.9999999648 | H25: 3.521525183e-08
E26: 24 | F26: 2.968106582e-08 | G26: 0.9999999945 | H26: 5.534185998e-09
E27: 25 | F27: 4.748970531e-09 | G27: 0.9999999992 | H27: 7.852154482e-10
E28: 26 | F28: 6.849476728e-10 | G28: 0.9999999999 | H28: 1.002677941e-10
E29: 27 | F29: 8.878951314e-11 | G29: 1 | H29: 1.147826278e-11
E30: 28 | F30: 1.030592563e-11 | G30: 1 | H30: 1.172395514e-12
E31: 29 | F31: 1.066130238e-12 | G31: 1 | H31: 1.061373212e-13
E32: 30 | F32: 9.772860513e-14 | G32: 1 | H32: 8.437694987e-15
E33: 31 | F33: 7.881339124e-15 | G33: 1 | H33: 0
E34: 32 | F34: 5.541566571e-16 | G34: 1 | H34: 0
E35: 33 | F35: 3.358525195e-17 | G35: 1 | H35: 0
E36: 34 | F36: 1.728652674e-18 | G36: 1 | H36: 0
E37: 35 | F37: 7.408511459e-20 | G37: 1 | H37: 0
E38: 36 | F38: 2.572399812e-21 | G38: 1 | H38: 0
E39: 37 | F39: 6.952431925e-23 | G39: 1 | H39: 0
E40: 38 | F40: 1.372190511e-24 | G40: 1 | H40: 0
E41: 39 | F41: 1.759218604e-26 | G41: 1 | H41: 0
E42: 40 | F42: 1.099511628e-28 | G42: 1 | H42: 0
F43: =SUM(F2:F42) -> 1
A46: Distribuição de Poisson | E46: Fila: | F46: média de chegada | H46: 3.7 | I46: número | J46: Poisson
I47: 0
I48: 1
I49: 2
I50: 3
I51: 4
I52: 5
I53: 6
I54: 7
I55: 8
I56: 9
I57: 10
I58: 11
I60: mais
